Workbook

Sheet Analysis
B2: Property Information | G2: Operating Income | O2: Unit Mix
B3: Property Name | E3: Bridgeport 148 | G3: Income | H3: Current | I3: $/Unit | J3: % | K3: Pro Forma | L3: $/Unit | M3: % | O3: Unit Type | P3: # of Units | Q3: SF | R3: Current Rent | S3: High Achieved Rent | T3: Pro Forma
B4: Address | E4: 20 & 170 Read Street, 675 Central Avenue & 223 Iranistan Avenue | G4: Gross Potential Rent | H4: =T9 -> 3423300 | K4: =$T$9 -> 3423300 | O4: Studio | P4: =IF(O4="*Insert Unit Type*","",COUNTIF($Q$14:$Q$161,O4)) -> 21 | Q4: =IFERROR(AVERAGEIF($Q$14:$Q$161,O4,$R$14:$R$161),"") -> 489.5238095 | R4: =IF(O4="*Insert Unit Type*","",(AVERAGEIF($Q$14:$Q$161,O4,$S$14:$S$161))) -> 1085.238095 | S4: =IF(O4="*Insert Unit Type*","",_xlfn.MAXIFS($S$14:$S$161,$Q$14:$Q$161,O4)) -> 1250 | T4: 1300
B5: City/State/Zip | E5: Bridgeport, CT | G5: Below Market Rent | H5: =H6-H4 -> -586176 | J5: =IFERROR(H5/H4,0) -> -0.1712312681 | K5: =K6-K4 -> 0 | M5: =IFERROR(K5/K4,0) -> 0 | O5: 1 Bed | P5: =IF(O5="*Insert Unit Type*","",COUNTIF($Q$14:$Q$161,O5)) -> 27 | Q5: =IFERROR(AVERAGEIF($Q$14:$Q$161,O5,$R$14:$R$161),"") -> 631.0740741 | R5: =IF(O5="*Insert Unit Type*","",(AVERAGEIF($Q$14:$Q$161,O5,$S$14:$S$161))) -> 1267.777778 | S5: =IF(O5="*Insert Unit Type*","",_xlfn.MAXIFS($S$14:$S$161,$Q$14:$Q$161,O5)) -> 1425 | T5: 1500
B6: Year Built | E6: ='Portfolio Overview (2)'!F11 -> 1969-1990 | G6: Gross Scheduled Rent | H6: =R9 -> 2837124 | K6: =T9 -> 3423300 | O6: 2 Bed | P6: =IF(O6="*Insert Unit Type*","",COUNTIF($Q$14:$Q$161,O6)) -> 63 | Q6: =IFERROR(AVERAGEIF($Q$14:$Q$161,O6,$R$14:$R$161),"") -> 855.4444444 | R6: =IF(O6="*Insert Unit Type*","",(AVERAGEIF($Q$14:$Q$161,O6,$S$14:$S$161))) -> 1608.619048 | S6: =IF(O6="*Insert Unit Type*","",_xlfn.MAXIFS($S$14:$S$161,$Q$14:$Q$161,O6)) -> 1961 | T6: 1975
B7: Building SF | E7: ='Portfolio Overview (2)'!F12 -> 134144 | G7: Vacancy & Collections Loss | H7: =-ABS(H6*J7) -> -141856.2 | J7: 0.05 | K7: =-ABS(K6*M7) -> -171165 | M7: 0.05 | O7: 3 Bed | P7: =IF(O7="*Insert Unit Type*","",COUNTIF($Q$14:$Q$161,O7)) -> 13 | Q7: =IFERROR(AVERAGEIF($Q$14:$Q$161,O7,$R$14:$R$161),"") -> 1084.615385 | R7: =IF(O7="*Insert Unit Type*","",(AVERAGEIF($Q$14:$Q$161,O7,$S$14:$S$161))) -> 1945.384615 | S7: =IF(O7="*Insert Unit Type*","",_xlfn.MAXIFS($S$14:$S$161,$Q$14:$Q$161,O7)) -> 2400 | T7: 2450
B8: Units | E8: =P9 -> 148 | G8: Effective Rental Income | H8: =SUM(H6:H7) -> 2695267.8 | K8: =SUM(K6:K7) -> 3252135 | O8: 4 Bed | P8: =IF(O8="*Insert Unit Type*","",COUNTIF($Q$14:$Q$161,O8)) -> 24 | Q8: =IFERROR(AVERAGEIF($Q$14:$Q$161,O8,$R$14:$R$161),"") -> 1200 | R8: =IF(O8="*Insert Unit Type*","",(AVERAGEIF($Q$14:$Q$161,O8,$S$14:$S$161))) -> 2198.916667 | S8: =IF(O8="*Insert Unit Type*","",_xlfn.MAXIFS($S$14:$S$161,$Q$14:$Q$161,O8)) -> 2515 | T8: 2550
B9: Lot Size (Acres) | E9: ='Portfolio Overview (2)'!F10 -> 4.86 | G9: Late Fees | H9: =SUM('T12_170 Read_6.10.2025'!Q2,'T12_Central_6.10.2025'!Q2,'T12_20 Read_6.10.2025'!Q2,'T12_Seabreeze_6.10.2025'!Q2) -> 8976 | I9: =IFERROR(H9/$E$8,0) -> 60.64864865 | K9: =H9 -> 8976 | L9: =IFERROR(K9/$E$8,0) -> 60.64864865 | O9: Annual Total | P9: =SUM(P4:P8) -> 148 | R9: =SUMPRODUCT($P$4:$P$8,R4:R8)*12 -> 2837124 | S9: =SUMPRODUCT($P$4:$P$8,S4:S8)*12 -> 3357936 | T9: =SUMPRODUCT($P$4:$P$8,T4:T8)*12 -> 3423300
B10: Investment Information | G10: Laundry Income | H10: =75*E8 -> 11100 | I10: =IFERROR(H10/$E$8,0) -> 75 | K10: 11100 | L10: =IFERROR(K10/$E$8,0) -> 75 | O10: Average | Q10: =IFERROR(AVERAGE(R14:R161),0) -> 838.5945946 | R10: =IFERROR(AVERAGE(S14:S161),0) -> 1597.47973 | S10: =IFERROR(AVERAGE(T14:T161),0) -> 1890.72973 | T10: =IFERROR(AVERAGE(U14:U161),0) -> 1927.533784
B11: Purchase Price | E11: 24700000 | G11: Misc Income | H11: =SUM('T12_170 Read_6.10.2025'!Q3:Q4,'T12_Central_6.10.2025'!Q3:Q7,'T12_20 Read_6.10.2025'!Q3:Q7,'T12_Seabreeze_6.10.2025'!Q4:Q10) -> 25150.99 | I11: =IFERROR(H11/$E$8,0) -> 169.9391216 | K11: 25150.99 | L11: =IFERROR(K11/$E$8,0) -> 169.9391216
B12: Price/Unit | E12: =IFERROR(E11/E8,0) -> 166891.8919 | G12: Parking Income | H12: =SUM('T12_170 Read_6.10.2025'!Q5,'T12_Central_6.10.2025'!Q8,'T12_20 Read_6.10.2025'!Q8,'T12_Seabreeze_6.10.2025'!Q11) -> 23348.5 | I12: =IFERROR(H12/$E$8,0) -> 157.7601351 | K12: 23348.5 | L12: =IFERROR(K12/$E$8,0) -> 157.7601351 | O12: Rent Roll
B13: Price/SF | E13: =E11/E7 -> 184.1304866 | G13: Pet Income | H13: =SUM('T12_Central_6.10.2025'!Q9,'T12_20 Read_6.10.2025'!Q9,'T12_Seabreeze_6.10.2025'!Q12) -> 6645 | I13: =IFERROR(H13/$E$8,0) -> 44.89864865 | K13: 6645 | L13: =IFERROR(K13/$E$8,0) -> 44.89864865 | O13: Property | P13: Unit # | Q13: Unit Type | R13: SF | S13: Current Rent | T13: High Achieved Rent | U13: Pro Forma | V13: Move In | W13: Lease End
B14: Cap Rate - Current | E14: =H36/E11 -> 0.0700244621 | G14: Total Additional Income | H14: =SUM(H9:H13) -> 75220.49 | I14: =SUM(I9:I13) -> 508.2465541 | K14: =SUM(K9:K13) -> 75220.49 | L14: =SUM(L9:L13) -> 508.2465541 | O14: 170 Read Street | P14: #A | Q14: 2 Bed | R14: 900 | S14: 1961 | T14: =IF(Q14="","",_xlfn.XLOOKUP(Q14,$O$4:$O$8,$S$4:$S$8)) -> 1961 | U14: =IF(Q14="*Insert Unit Type*","",_xlfn.XLOOKUP(Q14,$O$4:$O$8,$T$4:$T$8,"")) -> 1975 | V14: 2021-10-01 | W14: 2025-09-30
B15: Cap Rate - Pro Forma | E15: =K36/E11 -> 0.09189333594 | O15: 170 Read Street | P15: #B | Q15: 2 Bed | R15: 900 | S15: 1150 | T15: 1961 | U15: 1975 | V15: 2020-02-27 | W15: 2025-08-31
B16: Cash-on-Cash - Current | E16: =H42 -> 0.05738299297 | G16: Effective Gross Income | H16: =H8+H14 -> 2770488.29 | K16: =K8+K14 -> 3327355.49 | O16: 170 Read Street | P16: #C | Q16: 3 Bed | R16: 1200 | S16: 1425 | T16: 2400 | U16: 2450 | V16: 2020-02-27 | W16: 2025-08-31
B17: Cash-on-Cash - Pro Forma | E17: =K42 -> 0.1354974086 | O17: 170 Read Street | P17: #D | Q17: 2 Bed | R17: 900 | S17: 1150 | T17: 1961 | U17: 1975 | V17: 2020-02-27 | W17: 2025-08-31
B18: Average Rent - Current | E18: =R10 -> 1597.47973 | G18: Operating Expense | H18: Current | K18: Pro Forma | O18: 170 Read Street | P18: #E | Q18: 2 Bed | R18: 900 | S18: 1150 | T18: 1961 | U18: 1975 | V18: 2020-02-27 | W18: 2023-08-31
B19: Average High Achieved Rent | E19: =S10 -> 1890.72973 | G19: Expense | H19: =H3 -> Current | I19: $/Unit | J19: % | K19: =K3 -> Pro Forma | L19: $/Unit | M19: % | O19: 170 Read Street | P19: #F | Q19: 3 Bed | R19: 1200 | S19: 2400 | T19: 2400 | U19: 2450 | V19: 2024-10-01 | W19: 2025-09-30
B20: Average Rent - Pro Forma | E20: =T10 -> 1927.533784 | G20: Property Management | H20: =H16*J20 -> 83114.6487 | I20: =IFERROR(H20/$E$8,0) -> 561.5854642 | J20: 0.03 | K20: =K16*M20 -> 99820.6647 | L20: =IFERROR(K20/$E$8,0) -> 674.4639507 | M20: 0.03 | O20: 170 Read Street | P20: #G | Q20: 2 Bed | R20: 900 | S20: 1550 | T20: 1961 | U20: 1975 | V20: 2020-02-27 | W20: 2015-10-31
B21: Loan | G21: Real Estate Tax | H21: ='Portfolio Overview (2)'!F25 -> 284360.6975 | I21: 1921.356064 | K21: =H21 -> 284360.6975 | L21: 1921.356064 | O21: 170 Read Street | P21: #H | Q21: 3 Bed | R21: 1200 | S21: 2200 | T21: 2400 | U21: 2450 | V21: 2020-10-01 | W21: 2026-02-28
B22: LTV | E22: 0.75 | G22: Property Insurance | H22: =SUM('T12_170 Read_6.10.2025'!Q24:Q29,'T12_Central_6.10.2025'!Q30:Q35,'T12_20 Read_6.10.2025'!Q29:Q34,'T12_Seabreeze_6.10.2025'!Q36:Q41) -> 195325.11 | I22: 1319.764257 | K22: 195325.11 | L22: 1319.764257 | O22: 20 Read Street | P22: R-01 | Q22: 4 Bed | R22: 1200 | S22: 2400 | T22: 2515 | U22: 2550 | V22: 2022-02-09 | W22: 2024-01-31
B23: Interest Rate | E23: 0.06 | G23: Electric | H23: =SUM('T12_170 Read_6.10.2025'!Q52:Q53,'T12_Central_6.10.2025'!Q63:Q64,'T12_20 Read_6.10.2025'!Q60:Q61,'T12_Seabreeze_6.10.2025'!Q70:Q71) -> 28738.75 | I23: 194.1807432 | K23: 28738.75 | L23: 194.1807432 | O23: 20 Read Street | P23: R-02 | Q23: 4 Bed | R23: 1200 | S23: 2300 | T23: 2515 | U23: 2550 | V23: 2024-12-16 | W23: 2026-01-23
B24: Amortization (Years) | E24: 30 | G24: Heating Fuel | H24: =SUM('T12_170 Read_6.10.2025'!Q51,'T12_Central_6.10.2025'!Q62,'T12_20 Read_6.10.2025'!Q59,'T12_Seabreeze_6.10.2025'!Q69) -> 28107.93 | I24: 189.9184459 | K24: 28107.93 | L24: 189.9184459 | O24: 20 Read Street | P24: R-03 | Q24: 4 Bed | R24: 1200 | S24: 2400 | T24: 2515 | U24: 2550 | V24: 2018-09-07 | W24: 2025-08-31
B25: Annual Debt Service | E25: =-PMT(E23/12,E24*12,E28)*12 -> 1332800.817 | G25: Water and Sewer | H25: =SUM('T12_170 Read_6.10.2025'!Q50,'T12_170 Read_6.10.2025'!Q54,'T12_Central_6.10.2025'!Q61,'T12_Central_6.10.2025'!Q65,'T12_20 Read_6.10.2025'!Q58,'T12_20 Read_6.10.2025'!Q62,'T12_Seabreeze_6.10.2025'!Q68,'T12_Seabreeze_6.10.2025'!Q72) -> 91461.15 | I25: 617.9807432 | K25: 91461.15 | L25: 617.9807432 | O25: 20 Read Street | P25: R-04 | Q25: 4 Bed | R25: 1200 | S25: 2300 | T25: 2515 | U25: 2550 | V25: 2025-02-01 | W25: 2026-01-31
G26: Trash Removal | H26: =SUM('T12_170 Read_6.10.2025'!Q20,'T12_Central_6.10.2025'!Q26,'T12_20 Read_6.10.2025'!Q25) -> 26379.29 | I26: 178.2384459 | K26: 26379.29 | L26: 178.2384459 | O26: 20 Read Street | P26: R-05 | Q26: 4 Bed | R26: 1200 | S26: 2515 | T26: 2515 | U26: 2550 | V26: 2025-01-31 | W26: 2026-01-31
B27: Down PMT | E27: =IFERROR(E11-E28,0) -> 6175000 | G27: Repairs and Maintenance | H27: =500*E8 -> 74000 | I27: 500 | K27: 74000 | L27: 500 | O27: 20 Read Street | P27: R-06 | Q27: 4 Bed | R27: 1200 | S27: 2200 | T27: 2515 | U27: 2550 | V27: 2020-11-01 | W27: 2023-09-30
B28: Loan Amount | E28: =E11*E22 -> 18525000 | G28: Landscaping/Snow Removal | H28: =SUM('T12_170 Read_6.10.2025'!Q21,'T12_170 Read_6.10.2025'!Q23,'T12_Central_6.10.2025'!Q27,'T12_Central_6.10.2025'!Q29,'T12_20 Read_6.10.2025'!Q26,'T12_20 Read_6.10.2025'!Q28,'T12_Seabreeze_6.10.2025'!Q33,'T12_Seabreeze_6.10.2025'!Q35) -> 41324.12 | I28: 279.217027 | K28: 41324.12 | L28: 279.217027 | O28: 20 Read Street | P28: R-07 | Q28: 4 Bed | R28: 1200 | S28: 2000 | T28: 2515 | U28: 2550 | V28: 2022-12-13 | W28: 2026-01-31
B29: DSCR | E29: =H36/E25 -> 1.297721453 | G29: Payroll | H29: =E8*500 -> 74000 | I29: 500 | K29: 74000 | L29: 500 | O29: 20 Read Street | P29: R-08 | Q29: 4 Bed | R29: 1200 | S29: 1500 | T29: 2515 | U29: 2550 | V29: 2012-09-01 | W29: 2026-03-31
G30: Contract Services | H30: =SUM('T12_170 Read_6.10.2025'!Q19,'T12_170 Read_6.10.2025'!Q22,'T12_Central_6.10.2025'!Q25,'T12_Central_6.10.2025'!Q28,'T12_20 Read_6.10.2025'!Q24,'T12_20 Read_6.10.2025'!Q27,'T12_Seabreeze_6.10.2025'!Q32,'T12_Seabreeze_6.10.2025'!Q34) -> 47472.38 | I30: 320.7593243 | K30: 47472.38 | L30: 320.7593243 | O30: 20 Read Street | P30: R-09 | Q30: 4 Bed | R30: 1200 | S30: 2500 | T30: 2515 | U30: 2550
B31: Capital Budget, Closing Costs, Etc | E31: =E8*5000 -> 740000 | G31: Professional and Legal | H31: =E8*150 -> 22200 | I31: 150 | K31: 22200 | L31: 150 | O31: 20 Read Street | P31: R-10 | Q31: 4 Bed | R31: 1200 | S31: 2500 | T31: 2515 | U31: 2550 | V31: 2025-05-31 | W31: 2026-05-31
B32: Total Cash In | E32: =SUM(E31:E31)+E27 -> 6915000 | G32: General and Administrative | H32: =E8*150 -> 22200 | I32: 150 | K32: 22200 | L32: 150 | O32: 20 Read Street | P32: R-11 | Q32: 4 Bed | R32: 1200 | S32: 2500 | T32: 2515 | U32: 2550 | V32: 2024-02-01 | W32: 2025-01-31
G33: Leasing and Advertising | H33: =E8*150 -> 22200 | I33: 150 | K33: 22200 | L33: 150 | O33: 20 Read Street | P33: R-12 | Q33: 4 Bed | R33: 1200 | S33: 2200 | T33: 2515 | U33: 2550 | V33: 2013-05-01 | W33: 2025-02-28
G34: Total Expense | H34: =SUM(H20:H33) -> 1040884.076 | I34: =SUM(I20:I33) -> 7033.000515 | J34: =IFERROR(H34/H16,0) -> 0.3757041962 | K34: =SUM(K20:K33) -> 1057590.092 | L34: =SUM(L20:L33) -> 7145.879001 | M34: =IFERROR(K34/K16,0) -> 0.3178470396 | O34: 20 Read Street | P34: R-13 | Q34: 4 Bed | R34: 1200 | S34: 1700 | T34: 2515 | U34: 2550 | V34: 2015-06-01 | W34: 2021-12-31
O35: 20 Read Street | P35: R-14 | Q35: 4 Bed | R35: 1200 | S35: 2300 | T35: 2515 | U35: 2550 | V35: 2024-12-09 | W35: 2025-12-31
G36: Net Operating Income | H36: =H16-H34 -> 1729604.214 | K36: =K16-K34 -> 2269765.398 | O36: 20 Read Street | P36: R-15 | Q36: 4 Bed | R36: 1200 | S36: 1550 | T36: 2515 | U36: 2550 | V36: 2013-10-17 | W36: 2026-03-31
O37: 20 Read Street | P37: R-16 | Q37: 4 Bed | R37: 1200 | S37: 2500 | T37: 2515 | U37: 2550 | V37: 2022-06-03 | W37: 2026-02-28
G38: Debt Service | H38: =E25 -> 1332800.817 | K38: =E25 -> 1332800.817 | O38: 20 Read Street | P38: R-17 | Q38: 4 Bed | R38: 1200 | S38: 1900 | T38: 2515 | U38: 2550 | V38: 2021-08-02 | W38: 2025-10-31
O39: 20 Read Street | P39: R-18 | Q39: 4 Bed | R39: 1200 | S39: 2400 | T39: 2515 | U39: 2550 | V39: 2017-03-01 | W39: 2026-02-28
G40: Cashflow after Debt Service | H40: =H36-H38 -> 396803.3964 | K40: =K36-K38 -> 936964.5804 | O40: 20 Read Street | P40: R-19 | Q40: 4 Bed | R40: 1200 | S40: 2475 | T40: 2515 | U40: 2550 | V40: 2024-01-26 | W40: 2025-01-25
O41: 20 Read Street | P41: R-20 | Q41: 4 Bed | R41: 1200 | S41: 2334 | T41: 2515 | U41: 2550 | V41: 2016-08-01 | W41: 2025-11-30
G42: Cash on Cash | H42: =H40/E32 -> 0.05738299297 | K42: =K40/E32 -> 0.1354974086 | O42: 20 Read Street | P42: R-21 | Q42: 4 Bed | R42: 1200 | S42: 2200 | T42: 2515 | U42: 2550 | V42: 2015-12-01 | W42: 2025-04-30
O43: 20 Read Street | P43: R-22 | Q43: 4 Bed | R43: 1200 | S43: 1900 | T43: 2515 | U43: 2550 | V43: 2020-09-01 | W43: 2025-08-31
O44: 20 Read Street | P44: R-23 | Q44: 4 Bed | R44: 1200 | S44: 2000 | T44: 2515 | U44: 2550 | V44: 2020-02-28 | W44: 2026-02-28
O45: 20 Read Street | P45: R-24 | Q45: 4 Bed | R45: 1200 | S45: 2200 | T45: 2515 | U45: 2550 | V45: 2016-09-01 | W45: 2025-02-28
O46: 20 Read Street | P46: R-25 | Q46: 2 Bed | R46: 770 | S46: 1500 | T46: =IF(Q46="","",_xlfn.XLOOKUP(Q46,$O$4:$O$8,$S$4:$S$8)) -> 1961 | U46: =IF(Q46="*Insert Unit Type*","",_xlfn.XLOOKUP(Q46,$O$4:$O$8,$T$4:$T$8,"")) -> 1975 | V46: 2020-03-28 | W46: 2024-10-31
O47: 20 Read Street | P47: R-26 | Q47: 2 Bed | R47: 770 | S47: 1600 | T47: 1961 | U47: 1975 | V47: 2020-09-01 | W47: 2025-09-30
O48: 20 Read Street | P48: R-27 | Q48: 2 Bed | R48: 770 | S48: 1700 | T48: 1961 | U48: 1975 | V48: 2015-12-21 | W48: 2025-11-30
O49: 20 Read Street | P49: R-28 | Q49: 2 Bed | R49: 770 | S49: 1700 | T49: 1961 | U49: 1975 | V49: 2022-10-17 | W49: 2025-10-31
O50: 20 Read Street | P50: R-29 | Q50: 2 Bed | R50: 770 | S50: 1700 | T50: 1961 | U50: 1975 | V50: 2014-12-05 | W50: 2025-11-30
O51: 20 Read Street | P51: R-30 | Q51: 2 Bed | R51: 770 | S51: 1600 | T51: 1961 | U51: 1975 | V51: 2013-10-17 | W51: 2025-07-31
O52: 20 Read Street | P52: R-31 | Q52: 2 Bed | R52: 770 | S52: 1700 | T52: 1961 | U52: 1975 | V52: 2020-02-28 | W52: 2025-05-31
O53: 20 Read Street | P53: R-32 | Q53: 2 Bed | R53: 770 | S53: 1600 | T53: 1961 | U53: 1975 | V53: 2012-08-01 | W53: 2025-04-30
O54: 20 Read Street | P54: R-33 | Q54: 2 Bed | R54: 770 | S54: 1700 | T54: 1961 | U54: 1975 | V54: 2019-03-01 | W54: 2025-11-30
O55: 20 Read Street | P55: R-34 | Q55: 2 Bed | R55: 770 | S55: 1465 | T55: 1961 | U55: 1975 | V55: 2019-11-01
O56: 20 Read Street | P56: R-35 | Q56: 2 Bed | R56: 770 | S56: 1500 | T56: 1961 | U56: 1975 | V56: 2020-02-28 | W56: 2021-02-27
O57: 20 Read Street | P57: R-36 | Q57: 2 Bed | R57: 770 | S57: 1325 | T57: 1961 | U57: 1975 | V57: 2015-05-01 | W57: 2024-03-31
O58: 20 Read Street | P58: R-37 | Q58: 2 Bed | R58: 770 | S58: 1700 | T58: 1961 | U58: 1975 | V58: 2017-08-01 | W58: 2026-02-28
O59: 20 Read Street | P59: R-38 | Q59: 2 Bed | R59: 770 | S59: 1475 | T59: 1961 | U59: 1975 | V59: 2019-12-09 | W59: 2026-05-31
O60: 20 Read Street | P60: R-39 | Q60: 2 Bed | R60: 770 | S60: 1400 | T60: 1961 | U60: 1975 | V60: 2021-09-01 | W60: 2025-08-31
O61: 20 Read Street | P61: R-40 | Q61: 2 Bed | R61: 770 | S61: 1400 | T61: 1961 | U61: 1975 | V61: 2020-06-12 | W61: 2025-07-31
O62: 20 Read Street | P62: R-41 | Q62: 2 Bed | R62: 770 | S62: 1300 | T62: 1961 | U62: 1975 | V62: 2020-05-29 | W62: 2021-05-31
O63: 20 Read Street | P63: R-42 | Q63: 2 Bed | R63: 770 | S63: 1650 | T63: 1961 | U63: 1975 | V63: 2023-09-05 | W63: 2024-10-01
O64: 20 Read Street | P64: R-43 | Q64: 2 Bed | R64: 770 | S64: 1400 | T64: 1961 | U64: 1975 | V64: 2020-03-28 | W64: 2025-08-31
O65: 20 Read Street | P65: R-44 | Q65: 2 Bed | R65: 770 | S65: 1651 | T65: 1961 | U65: 1975 | V65: 2024-04-17 | W65: 2026-04-30
O66: 675 Central Avenue | P66: C-01 | Q66: 3 Bed | R66: 1050 | S66: 2250 | T66: 2400 | U66: 2450 | V66: 2015-05-01 | W66: 2016-04-30
O67: 675 Central Avenue | P67: C-02 | Q67: 2 Bed | R67: 900 | S67: 1550 | T67: 1961 | U67: 1975 | V67: 2020-02-12 | W67: 2025-11-30
O68: 675 Central Avenue | P68: C-03 | Q68: 2 Bed | R68: 900 | S68: 1800 | T68: 1961 | U68: 1975 | V68: 2025-01-31 | W68: 2026-01-30
O69: 675 Central Avenue | P69: C-04 | Q69: 2 Bed | R69: 990 | S69: 1800 | T69: 1961 | U69: 1975 | V69: 2025-04-30 | W69: 2026-04-30
O70: 675 Central Avenue | P70: C-05 | Q70: 2 Bed | R70: 990 | S70: 1700 | T70: 1961 | U70: 1975 | V70: 2024-04-15 | W70: 2026-04-30
O71: 675 Central Avenue | P71: C-06 | Q71: 2 Bed | R71: 900 | S71: 1650 | T71: 1961 | U71: 1975 | V71: 2018-11-01 | W71: 2024-11-30
O72: 675 Central Avenue | P72: C-07 | Q72: 2 Bed | R72: 990 | S72: 1850 | T72: 1961 | U72: 1975 | V72: 2020-02-28 | W72: 2025-11-30
O73: 675 Central Avenue | P73: C-08 | Q73: 2 Bed | R73: 990 | S73: 1675 | T73: 1961 | U73: 1975 | V73: 2023-05-08 | W73: 2024-05-07
O74: 675 Central Avenue | P74: C-09 | Q74: 2 Bed | R74: 990 | S74: 1550 | T74: 1961 | U74: 1975 | V74: 2019-05-10 | W74: 2026-05-31
O75: 675 Central Avenue | P75: C-10 | Q75: 3 Bed | R75: 1050 | S75: 1750 | T75: 2400 | U75: 2450 | V75: 2019-08-01 | W75: 2026-02-28
O76: 675 Central Avenue | P76: C-11 | Q76: 3 Bed | R76: 1050 | S76: 1850 | T76: 2400 | U76: 2450 | V76: 2019-07-01 | W76: 2025-02-28
O77: 675 Central Avenue | P77: C-12 | Q77: 2 Bed | R77: 900 | S77: 1500 | T77: 1961 | U77: 1975 | V77: 2019-06-01 | W77: 2025-09-30
O78: 675 Central Avenue | P78: C-13 | Q78: 2 Bed | R78: 900 | S78: 1800 | T78: =IF(Q78="","",_xlfn.XLOOKUP(Q78,$O$4:$O$8,$S$4:$S$8)) -> 1961 | U78: =IF(Q78="*Insert Unit Type*","",_xlfn.XLOOKUP(Q78,$O$4:$O$8,$T$4:$T$8,"")) -> 1975
O79: 675 Central Avenue | P79: C-14 | Q79: 3 Bed | R79: 1050 | S79: 2150 | T79: 2400 | U79: 2450 | V79: 2024-11-01 | W79: 2025-10-31
O80: 675 Central Avenue | P80: C-15 | Q80: 3 Bed | R80: 1050 | S80: 1690 | T80: 2400 | U80: 2450 | V80: 2019-10-18 | W80: 2025-06-30
O81: 675 Central Avenue | P81: C-16 | Q81: 2 Bed | R81: 900 | S81: 1750 | T81: 1961 | U81: 1975 | V81: 2024-12-27 | W81: 2025-12-31
O82: 675 Central Avenue | P82: C-17 | Q82: 2 Bed | R82: 900 | S82: 1750 | T82: 1961 | U82: 1975 | V82: 2019-06-14 | W82: 2025-06-30
O83: 675 Central Avenue | P83: C-18 | Q83: 2 Bed | R83: 900 | S83: 1700 | T83: 1961 | U83: 1975 | V83: 2023-06-03 | W83: 2026-05-31
O84: 675 Central Avenue | P84: C-19 | Q84: 2 Bed | R84: 990 | S84: 1800 | T84: 1961 | U84: 1975 | V84: 2025-06-04 | W84: 2026-05-31
O85: 675 Central Avenue | P85: C-20 | Q85: 2 Bed | R85: 900 | S85: 1800 | T85: 1961 | U85: 1975 | V85: 2025-05-01 | W85: 2026-04-30
O86: 675 Central Avenue | P86: C-21 | Q86: 2 Bed | R86: 900 | S86: 1750 | T86: 1961 | U86: 1975 | V86: 2024-11-01 | W86: 2025-10-31
O87: 675 Central Avenue | P87: C-22 | Q87: 2 Bed | R87: 990 | S87: 1800 | T87: 1961 | U87: 1975 | V87: 2018-08-15 | W87: 2026-01-31
O88: 675 Central Avenue | P88: C-23 | Q88: 2 Bed | R88: 900 | S88: 1850 | T88: 1961 | U88: 1975 | V88: 2012-09-01 | W88: 2025-11-30
O89: 675 Central Avenue | P89: C-24 | Q89: 3 Bed | R89: 1050 | S89: 1700 | T89: 2400 | U89: 2450 | V89: 2017-11-11 | W89: 2025-07-31
O90: 675 Central Avenue | P90: C-25 | Q90: 3 Bed | R90: 1050 | S90: 2100 | T90: 2400 | U90: 2450 | V90: 2018-12-14 | W90: 2025-10-31
O91: 675 Central Avenue | P91: C-26 | Q91: 2 Bed | R91: 900 | S91: 1550 | T91: 1961 | U91: 1975 | V91: 2019-08-01 | W91: 2025-09-30
O92: 675 Central Avenue | P92: C-27 | Q92: 2 Bed | R92: 990 | S92: 1500 | T92: 1961 | U92: 1975 | V92: 2020-02-01 | W92: 2025-10-31
O93: 675 Central Avenue | P93: C-28 | Q93: 2 Bed | R93: 900 | S93: 1800 | T93: 1961 | U93: 1975 | V93: 2019-02-15 | W93: 2026-01-31
O94: 675 Central Avenue | P94: C-29 | Q94: 2 Bed | R94: 900 | S94: 1600 | T94: 1961 | U94: 1975 | V94: 2019-06-01 | W94: 2026-02-28
O95: 675 Central Avenue | P95: C-30 | Q95: 3 Bed | R95: 1050 | S95: 1750 | T95: 2400 | U95: 2450 | V95: 2017-03-01 | W95: 2026-02-28
O96: 675 Central Avenue | P96: C-31 | Q96: 3 Bed | R96: 1050 | S96: 2200 | T96: 2400 | U96: 2450 | V96: 2021-11-01 | W96: 2025-11-30
O97: 675 Central Avenue | P97: C-32 | Q97: 2 Bed | R97: 990 | S97: 1900 | T97: 1961 | U97: 1975 | V97: 2021-07-02 | W97: 2026-03-31
O98: 675 Central Avenue | P98: C-33 | Q98: 2 Bed | R98: 950 | S98: 1500 | T98: 1961 | U98: 1975 | V98: 2016-03-01 | W98: 2026-02-28
O99: 675 Central Avenue | P99: C-34 | Q99: 2 Bed | R99: 950 | S99: 1750 | T99: 1961 | U99: 1975 | V99: 2024-11-01 | W99: 2025-10-31
O100: 675 Central Avenue | P100: C-35 | Q100: 2 Bed | R100: 900 | S100: 1750 | T100: 1961 | U100: 1975 | V100: 2024-09-30 | W100: 2025-09-30
O101: 675 Central Avenue | P101: C-36 | Q101: 3 Bed | R101: 1050 | S101: 1825 | T101: 2400 | U101: 2450 | V101: 2022-06-01 | W101: 2026-05-31
O102: Seabreeze | P102: 223I-A1 | Q102: 1 Bed | R102: 524 | S102: 1300 | T102: 1425 | U102: 1500
O103: Seabreeze | P103: 223I-A2 | Q103: 1 Bed | R103: 605 | S103: 1175 | T103: 1425 | U103: 1500 | V103: 2022-08-25 | W103: 2025-09-30
O104: Seabreeze | P104: 223I-A3 | Q104: Studio | R104: 451 | S104: 1140 | T104: 1250 | U104: 1300 | V104: 2023-07-14 | W104: 2025-07-31
O105: Seabreeze | P105: 223I-A4 | Q105: 1 Bed | R105: 637 | S105: 1250 | T105: 1425 | U105: 1500 | V105: 2024-03-01 | W105: 2025-02-28
O106: Seabreeze | P106: 223I-A5 | Q106: 1 Bed | R106: 677 | S106: 1300 | T106: 1425 | U106: 1500
O107: Seabreeze | P107: 223I-A6 | Q107: Studio | R107: 451 | S107: 1130 | T107: 1250 | U107: 1300 | V107: 2024-01-19 | W107: 2026-01-31
O108: Seabreeze | P108: 223I-A7 | Q108: 1 Bed | R108: 605 | S108: 1200 | T108: 1425 | U108: 1500 | V108: 2021-11-01 | W108: 2023-10-31
O109: Seabreeze | P109: 223I-A8 | Q109: 1 Bed | R109: 605 | S109: 1200 | T109: 1425 | U109: 1500 | V109: 2012-07-16 | W109: 2025-09-30
O110: Seabreeze | P110: 223I-B1 | Q110: 1 Bed | R110: 613 | S110: 1300 | T110: =IF(Q110="","",_xlfn.XLOOKUP(Q110,$O$4:$O$8,$S$4:$S$8)) -> 1425 | U110: =IF(Q110="*Insert Unit Type*","",_xlfn.XLOOKUP(Q110,$O$4:$O$8,$T$4:$T$8,"")) -> 1500 | V110: 2019-09-03 | W110: 2025-09-30
O111: Seabreeze | P111: 223I-B2 | Q111: 1 Bed | R111: 613 | S111: 1200 | T111: 1425 | U111: 1500 | V111: 2018-05-30 | W111: 2025-12-31
O112: Seabreeze | P112: 223I-B3 | Q112: Studio | R112: 459 | S112: 1000 | T112: 1250 | U112: 1300 | V112: 2019-09-11 | W112: 2024-04-30
O113: Seabreeze | P113: 223I-B4 | Q113: 1 Bed | R113: 637 | S113: 1300 | T113: 1425 | U113: 1500 | V113: 2023-01-04 | W113: 2026-01-31
O114: Seabreeze | P114: 223I-B5 | Q114: 1 Bed | R114: 685 | S114: 1350 | T114: 1425 | U114: 1500 | V114: 2023-09-25 | W114: 2025-10-31
O115: Seabreeze | P115: 223I-B6 | Q115: Studio | R115: 459 | S115: 950 | T115: 1250 | U115: 1300 | V115: 2008-04-30 | W115: 2025-07-31
O116: Seabreeze | P116: 223I-B7 | Q116: 1 Bed | R116: 613 | S116: 1275 | T116: 1425 | U116: 1500 | V116: 2024-02-29 | W116: 2026-02-28
O117: Seabreeze | P117: 223I-B8 | Q117: 1 Bed | R117: 613 | S117: 1300 | T117: 1425 | U117: 1500
O118: Seabreeze | P118: 223I-C1 | Q118: 1 Bed | R118: 621 | S118: 1300 | T118: 1425 | U118: 1500
O119: Seabreeze | P119: 223I-C2 | Q119: 1 Bed | R119: 613 | S119: 1265 | T119: 1425 | U119: 1500 | V119: 2023-08-16 | W119: 2025-09-30
O120: Seabreeze | P120: 223I-C3 | Q120: Studio | R120: 468 | S120: 1000 | T120: 1250 | U120: 1300 | V120: 2021-02-25 | W120: 2025-11-30
O121: Seabreeze | P121: 223I-C4 | Q121: 1 Bed | R121: 637 | S121: 1025 | T121: 1425 | U121: 1500 | V121: 2011-01-01 | W121: 2025-12-31
O122: Seabreeze | P122: 223I-C5 | Q122: 1 Bed | R122: 693 | S122: 1425 | T122: 1425 | U122: 1500 | V122: 2025-01-31 | W122: 2026-01-30
O123: Seabreeze | P123: 223I-C6 | Q123: Studio | R123: 468 | S123: 1050 | T123: 1250 | U123: 1300 | V123: 2024-05-04 | W123: 2026-04-30
O124: Seabreeze | P124: 223I-C7 | Q124: 1 Bed | R124: 621 | S124: 1300 | T124: 1425 | U124: 1500 | V124: 2025-02-07 | W124: 2026-02-06
O125: Seabreeze | P125: 223I-C8 | Q125: 1 Bed | R125: 621 | S125: 1300 | T125: 1425 | U125: 1500 | V125: 2025-01-31 | W125: 2026-01-30
O126: Seabreeze | P126: 760A-D1 | Q126: 2 Bed | R126: 840 | S126: 1516 | T126: 1961 | U126: 1975 | V126: 2018-02-02 | W126: 2026-06-30
O127: Seabreeze | P127: 760A-D2 | Q127: 1 Bed | R127: 693 | S127: 1400 | T127: 1425 | U127: 1500 | V127: 2024-12-31 | W127: 2025-12-31
O128: Seabreeze | P128: 760A-D3 | Q128: Studio | R128: 532 | S128: 1150 | T128: 1250 | U128: 1300 | V128: 2024-10-01 | W128: 2025-09-30
O129: Seabreeze | P129: 760A-D4 | Q129: Studio | R129: 532 | S129: 1025 | T129: 1250 | U129: 1300 | V129: 2019-09-03 | W129: 2025-10-31
O130: Seabreeze | P130: 760A-D5 | Q130: 2 Bed | R130: 798 | S130: 1600 | T130: 1961 | U130: 1975 | V130: 2017-06-07 | W130: 2025-06-30
O131: Seabreeze | P131: 760A-D6 | Q131: 2 Bed | R131: 766 | S131: 1675 | T131: 1961 | U131: 1975 | V131: 2023-05-10 | W131: 2024-05-31
O132: Seabreeze | P132: 760A-D7 | Q132: 1 Bed | R132: 613 | S132: 1300 | T132: 1425 | U132: 1500 | V132: 2022-04-01 | W132: 2025-07-31
O133: Seabreeze | P133: 760A-D8 | Q133: Studio | R133: 468 | S133: 1050 | T133: 1250 | U133: 1300 | V133: 2024-09-17 | W133: 2025-09-30
O134: Seabreeze | P134: 760A-D9 | Q134: Studio | R134: 468 | S134: 1100 | T134: 1250 | U134: 1300 | V134: 2023-08-03 | W134: 2024-09-30
O135: Seabreeze | P135: 760A-D10 | Q135: 1 Bed | R135: 613 | S135: 1300 | T135: 1425 | U135: 1500
O136: Seabreeze | P136: 760A-D11 | Q136: Studio | R136: 484 | S136: 1025 | T136: 1250 | U136: 1300 | V136: 2020-07-31 | W136: 2022-12-31
O137: Seabreeze | P137: 760A-D12 | Q137: 2 Bed | R137: 798 | S137: 1400 | T137: 1961 | U137: 1975 | V137: 2020-02-19 | W137: 2025-08-31
O138: Seabreeze | P138: 760A-E1 | Q138: 2 Bed | R138: 840 | S138: 1750 | T138: 1961 | U138: 1975 | V138: 2023-11-21 | W138: 2024-12-31
O139: Seabreeze | P139: 760A-E2 | Q139: 1 Bed | R139: 693 | S139: 1400 | T139: 1425 | U139: 1500 | V139: 2023-06-21 | W139: 2025-07-31
O140: Seabreeze | P140: 760A-E3 | Q140: Studio | R140: 532 | S140: 1250 | T140: 1250 | U140: 1300 | V140: 2022-11-03 | W140: 2023-08-31
O141: Seabreeze | P141: 760A-E4 | Q141: Studio | R141: 532 | S141: 1150 | T141: 1250 | U141: 1300 | V141: 2024-10-01 | W141: 2025-09-30
O142: Seabreeze | P142: 760A-E5 | Q142: 2 Bed | R142: 815 | S142: 1550 | T142: =IF(Q142="","",_xlfn.XLOOKUP(Q142,$O$4:$O$8,$S$4:$S$8)) -> 1961 | U142: =IF(Q142="*Insert Unit Type*","",_xlfn.XLOOKUP(Q142,$O$4:$O$8,$T$4:$T$8,"")) -> 1975 | V142: 2022-03-09 | W142: 2026-04-30
O143: Seabreeze | P143: 760A-E6 | Q143: 2 Bed | R143: 774 | S143: 1700 | T143: 1961 | U143: 1975 | V143: 2022-06-16 | W143: 2026-06-30
O144: Seabreeze | P144: 760A-E7 | Q144: 1 Bed | R144: 621 | S144: 1100 | T144: 1425 | U144: 1500 | V144: 2020-03-12 | W144: 2026-04-30
O145: Seabreeze | P145: 760A-E8 | Q145: Studio | R145: 476 | S145: 1100 | T145: 1250 | U145: 1300 | V145: 2020-07-17 | W145: 2026-05-31
O146: Seabreeze | P146: 760A-E9 | Q146: Studio | R146: 476 | S146: 1100 | T146: 1250 | U146: 1300 | V146: 2025-04-30 | W146: 2026-04-30
O147: Seabreeze | P147: 760A-E10 | Q147: 1 Bed | R147: 613 | S147: 1290 | T147: 1425 | U147: 1500 | V147: 2024-01-05 | W147: 2026-01-04
O148: Seabreeze | P148: 760A-E11 | Q148: Studio | R148: 492 | S148: 1100 | T148: 1250 | U148: 1300 | V148: 2025-04-04 | W148: 2026-04-03
O149: Seabreeze | P149: 760A-E12 | Q149: 2 Bed | R149: 806 | S149: 1800 | T149: 1961 | U149: 1975 | V149: 2025-05-31 | W149: 2026-05-30
O150: Seabreeze | P150: 760A-F1 | Q150: 2 Bed | R150: 840 | S150: 1100 | T150: 1961 | U150: 1975 | V150: 2018-06-30 | W150: 2026-01-31
O151: Seabreeze | P151: 760A-F2 | Q151: 1 Bed | R151: 702 | S151: 1300 | T151: 1425 | U151: 1500 | V151: 2019-09-14 | W151: 2022-09-30
O152: Seabreeze | P152: 760A-F3 | Q152: Studio | R152: 532 | S152: 1150 | T152: 1250 | U152: 1300 | V152: 2025-04-30 | W152: 2026-04-30
O153: Seabreeze | P153: 760A-F4 | Q153: Studio | R153: 540 | S153: 1150 | T153: 1250 | U153: 1300 | V153: 2024-05-01 | W153: 2026-04-30
O154: Seabreeze | P154: 760A-F5 | Q154: 2 Bed | R154: 815 | S154: 1750 | T154: 1961 | U154: 1975 | V154: 2025-03-21 | W154: 2026-04-30
O155: Seabreeze | P155: 760A-F6 | Q155: 2 Bed | R155: 785 | S155: 1450 | T155: 1961 | U155: 1975 | V155: 2018-09-14 | W155: 2025-09-30
O156: Seabreeze | P156: 760A-F7 | Q156: 1 Bed | R156: 629 | S156: 1125 | T156: 1425 | U156: 1500 | V156: 2018-11-01 | W156: 2025-08-31
O157: Seabreeze | P157: 760A-F8 | Q157: Studio | R157: 484 | S157: 1020 | T157: 1250 | U157: 1300 | V157: 2020-03-06 | W157: 2026-02-28
O158: Seabreeze | P158: 760A-F9 | Q158: Studio | R158: 476 | S158: 1000 | T158: 1250 | U158: 1300 | V158: 2020-01-31 | W158: 2026-01-31
O159: Seabreeze | P159: 760A-F10 | Q159: 1 Bed | R159: 629 | S159: 1250 | T159: 1425 | U159: 1500 | V159: 2019-03-21 | W159: 2025-12-31
O160: Seabreeze | P160: 760A-F11 | Q160: Studio | R160: 500 | S160: 1150 | T160: 1250 | U160: 1300 | V160: 2018-12-01 | W160: 2026-01-31
O161: Seabreeze | P161: 760A-F12 | Q161: 2 Bed | R161: 806 | S161: 1600 | T161: 1961 | U161: 1975 | V161: 2023-01-18 | W161: 2026-02-28
O162: Monthly Total | R162: =SUM(R14:R161) -> 124112 | S162: =SUM(S14:S161) -> 236427 | T162: =SUM(T14:T161) -> 279828 | U162: =SUM(U14:U161) -> 285275

Sheet RR_Bridgeport 148_6.10.2025
A1: Tenant Name | B1: Tenant ID | C1: Unit | D1: Floorplan | E1: Unit Type | F1: Property | G1: Property | H1: Sq Ft | I1: Rent | J1: Tenant | K1: Assistance | L1: Early Pay Disc. | M1: Vacancy Loss | N1: Pet Fees | O1: Parking | P1: Employee Disc | Q1: Security Deposit | R1: Move In | S1: Lease End
A2: Rivera Medina, Milagro | B2: 4373 | C2: #A | D2: 2 Bed | E2: 2BR | F2: 170 Read Street | G2: A1 170 Read St | H2: 900 | I2: =SUM(J2:M2) -> 1961 | J2: 45 | K2: 1916 | L2: 0 | M2: 0 | N2: 0 | O2: 0 | P2: 0 | Q2: 1258 | R2: 2021-10-01 | S2: 2025-09-30
A3: Jones, Ramona | B3: 3422 | C3: #B | D3: 2 Bed | E3: 2BR | F3: 170 Read Street | G3: A1 170 Read St | H3: 900 | I3: 1150 | J3: 1150 | K3: 0 | L3: 0 | M3: 0 | N3: 0 | O3: 0 | P3: 0 | Q3: 800 | R3: 2020-02-27 | S3: 2025-08-31
A4: Johnson, Stacy-Ann | B4: 3423 | C4: #C | D4: 3 Bed | E4: 3BR-1BA-TH | F4: 170 Read Street | G4: A1 170 Read St | H4: 1200 | I4: 1425 | J4: 1425 | K4: 0 | L4: 0 | M4: 0 | N4: 0 | O4: 0 | P4: 0 | Q4: 800 | R4: 2020-02-27 | S4: 2025-08-31
A5: Khanyile, Winnie | B5: 3424 | C5: #D | D5: 2 Bed | E5: 2BR | F5: 170 Read Street | G5: A1 170 Read St | H5: 900 | I5: 1150 | J5: 1150 | K5: 0 | L5: 0 | M5: 0 | N5: 0 | O5: 0 | P5: 0 | Q5: 0 | R5: 2020-02-27 | S5: 2025-08-31
A6: Kirkland, Francis | B6: 3425 | C6: #E | D6: 2 Bed | E6: 2BR | F6: 170 Read Street | G6: A1 170 Read St | H6: 900 | I6: 1150 | J6: 1150 | K6: 0 | L6: 0 | M6: 0 | N6: 0 | O6: 0 | P6: 0 | Q6: 895 | R6: 2020-02-27 | S6: 2023-08-31
A7: Centeno, Jocelyn | B7: 6338 | C7: #F | D7: 3 Bed | E7: 3BR-1BA-TH | F7: 170 Read Street | G7: A1 170 Read St | H7: 1200 | I7: 2400 | J7: 0 | K7: 2400 | L7: 0 | M7: 0 | N7: 0 | O7: 30 | P7: 0 | Q7: 4830 | R7: 2024-10-01 | S7: 2025-09-30
A8: Aviles, Luz | B8: 3427 | C8: #G | D8: 2 Bed | E8: 2BR | F8: 170 Read Street | G8: A1 170 Read St | H8: 900 | I8: 1550 | J8: 0 | K8: 1550 | L8: 0 | M8: 0 | N8: 0 | O8: 0 | P8: 0 | Q8: 0 | R8: 2020-02-27 | S8: 2015-10-31
A9: Pacheco, Denys | B9: 3663 | C9: #H | D9: 3 Bed | E9: 3BR-1BA-TH | F9: 170 Read Street | G9: A1 170 Read St | H9: 1200 | I9: 2200 | J9: 0 | K9: 2200 | L9: 0 | M9: 0 | N9: 0 | O9: 0 | P9: 0 | Q9: 1600 | R9: 2020-10-01 | S9: 2026-02-28
A10: Vega-Montanez, Maria | B10: 4457 | C10: R-01 | D10: 4 Bed | E10: 4BR-1.5BA-TH | F10: 20 Read Street | G10: A1 20 Read St | H10: 1200 | I10: 2400 | J10: 0 | K10: 2400 | L10: 0 | M10: 0 | N10: 0 | O10: 0 | P10: 0 | Q10: 3680 | R10: 2022-02-09 | S10: 2024-01-31
A11: Ramos, Joseph | B11: 6775 | C11: R-02 | D11: 4 Bed | E11: 4BR-1.5BA-TH | F11: 20 Read Street | G11: A1 20 Read St | H11: 1200 | I11: 2300 | J11: 2500 | K11: 0 | L11: -200 | M11: 0 | N11: 0 | O11: 0 | P11: 0 | Q11: 0 | R11: 2024-12-16 | S11: 2026-01-23
A12: Whitaker, Shamara | B12: 2871 | C12: R-03 | D12: 4 Bed | E12: 4BR-1.5BA-TH | F12: 20 Read Street | G12: A1 20 Read St | H12: 1200 | I12: 2400 | J12: 1118 | K12: 1282 | L12: 0 | M12: 0 | N12: 0 | O12: 0 | P12: 0 | Q12: 1320 | R12: 2018-09-07 | S12: 2025-08-31
A13: Epps, Erica | B13: 6768 | C13: R-04 | D13: 4 Bed | E13: 4BR-1.5BA-TH | F13: 20 Read Street | G13: A1 20 Read St | H13: 1200 | I13: 2300 | J13: 2500 | K13: 0 | L13: -200 | M13: 0 | N13: 0 | O13: 30 | P13: 0 | Q13: 5000 | R13: 2025-02-01 | S13: 2026-01-31
A14: Gonzalez-Andujar, Francheska | B14: 6684 | C14: R-05 | D14: 4 Bed | E14: 4BR-1.5BA-TH | F14: 20 Read Street | G14: A1 20 Read St | H14: 1200 | I14: 2515 | J14: 76 | K14: 2439 | L14: 0 | M14: 0 | N14: 0 | O14: 0 | P14: 0 | Q14: 3772.5 | R14: 2025-01-31 | S14: 2026-01-31
A15: Castro, Johnny | B15: 3655 | C15: R-06 | D15: 4 Bed | E15: 4BR-1.5BA-TH | F15: 20 Read Street | G15: A1 20 Read St | H15: 1200 | I15: 2200 | J15: 216 | K15: 1984 | L15: 0 | M15: 0 | N15: 0 | O15: 0 | P15: 0 | Q15: 500 | R15: 2020-11-01 | S15: 2023-09-30
A16: Gibbs, Worray | B16: 5037 | C16: R-07 | D16: 4 Bed | E16: 4BR-1.5BA-TH | F16: 20 Read Street | G16: A1 20 Read St | H16: 1200 | I16: 2000 | J16: 2100 | K16: 0 | L16: -100 | M16: 0 | N16: 0 | O16: 0 | P16: 0 | Q16: 0 | R16: 2022-12-13 | S16: 2026-01-31
A17: Coombs, Dorothy | B17: 1134 | C17: R-08 | D17: 4 Bed | E17: 4BR-1.5BA-TH | F17: 20 Read Street | G17: A1 20 Read St | H17: 1200 | I17: 1500 | J17: 1600 | K17: 0 | L17: -100 | M17: 0 | N17: 0 | O17: 0 | P17: 0 | Q17: 0 | R17: 2012-09-01 | S17: 2026-03-31
A18: <VACANT> | C18: R-09 | D18: 4 Bed | E18: 4BR-1.5BA-TH | F18: 20 Read Street | G18: A1 20 Read St | H18: 1200 | I18: 2500 | K18: 0 | M18: 2500 | Q18: 0
A19: Algarin, Dashon | B19: 7475 | C19: R-10 | D19: 4 Bed | E19: 4BR-1.5BA-TH | F19: 20 Read Street | G19: A1 20 Read St | H19: 1200 | I19: 2500 | J19: 2600 | K19: 0 | L19: -100 | M19: 0 | N19: 100 | O19: 0 | P19: 0 | Q19: 0 | R19: 2025-05-31 | S19: 2026-05-31
A20: Rivera-Gonzalez, Felicita | B20: 5875 | C20: R-11 | D20: 4 Bed | E20: 4BR-1.5BA-TH | F20: 20 Read Street | G20: A1 20 Read St | H20: 1200 | I20: 2500 | J20: 1123 | K20: 1377 | L20: 0 | M20: 0 | N20: 0 | O20: 30 | P20: 0 | Q20: 4875 | R20: 2024-02-01 | S20: 2025-01-31
A21: Estaba, Mary | B21: 1137 | C21: R-12 | D21: 4 Bed | E21: 4BR-1.5BA-TH | F21: 20 Read Street | G21: A1 20 Read St | H21: 1200 | I21: 2200 | J21: 925 | K21: 1275 | L21: 0 | M21: 0 | N21: 0 | O21: 0 | P21: 0 | Q21: 0 | R21: 2013-05-01 | S21: 2025-02-28
A22: Figueroa, Franchesca | B22: 1589 | C22: R-13 | D22: 4 Bed | E22: 4BR-1.5BA-TH | F22: 20 Read Street | G22: A1 20 Read St | H22: 1200 | I22: 1700 | J22: 1800 | K22: 0 | L22: -100 | M22: 0 | N22: 0 | O22: 0 | P22: -1200 | Q22: 0 | R22: 2015-06-01 | S22: 2021-12-31
A23: Savage, Brian | B23: 6748 | C23: R-14 | D23: 4 Bed | E23: 4BR-1.5BA-TH | F23: 20 Read Street | G23: A1 20 Read St | H23: 1200 | I23: 2300 | J23: 2500 | K23: 0 | L23: -200 | M23: 0 | N23: 0 | O23: 30 | P23: 0 | Q23: 3780 | R23: 2024-12-09 | S23: 2025-12-31
A24: Canada, Cornelia | B24: 1128 | C24: R-15 | D24: 4 Bed | E24: 4BR-1.5BA-TH | F24: 20 Read Street | G24: A1 20 Read St | H24: 1200 | I24: 1550 | J24: 1650 | K24: 0 | L24: -100 | M24: 0 | N24: 0 | O24: 50 | P24: 0 | Q24: 1423.38 | R24: 2013-10-17 | S24: 2026-03-31
A25: Escalera, Bryanna | B25: 4617 | C25: R-16 | D25: 4 Bed | E25: 4BR-1.5BA-TH | F25: 20 Read Street | G25: A1 20 Read St | H25: 1200 | I25: 2500 | J25: 0 | K25: 2500 | L25: 0 | M25: 0 | N25: 0 | O25: 0 | P25: 0 | Q25: 0 | R25: 2022-06-03 | S25: 2026-02-28
A26: Barksdale, Shontae | B26: 4289 | C26: R-17 | D26: 4 Bed | E26: 4BR-1.5BA-TH | F26: 20 Read Street | G26: A1 20 Read St | H26: 1200 | I26: 1900 | J26: 2000 | K26: 0 | L26: -100 | M26: 0 | N26: 0 | O26: 50 | P26: 0 | Q26: 200 | R26: 2021-08-02 | S26: 2025-10-31
A27: Camacho, Joanny | B27: 2299 | C27: R-18 | D27: 4 Bed | E27: 4BR-1.5BA-TH | F27: 20 Read Street | G27: A1 20 Read St | H27: 1200 | I27: 2400 | J27: 752 | K27: 1648 | L27: 0 | M27: 0 | N27: 0 | O27: 75 | P27: 0 | Q27: 1625 | R27: 2017-03-01 | S27: 2026-02-28
A28: Maloi, Wendy | B28: 5860 | C28: R-19 | D28: 4 Bed | E28: 4BR-1.5BA-TH | F28: 20 Read Street | G28: A1 20 Read St | H28: 1200 | I28: 2475 | J28: 2475 | K28: 0 | L28: 0 | M28: 0 | N28: 0 | O28: 0 | P28: 0 | Q28: 4800 | R28: 2024-01-26 | S28: 2025-01-25
A29: Valdez-Lantigua, Claribel | B29: 1925 | C29: R-20 | D29: 4 Bed | E29: 4BR-1.5BA-TH | F29: 20 Read Street | G29: A1 20 Read St | H29: 1200 | I29: 2334 | J29: 0 | K29: 2334 | L29: 0 | M29: 0 | N29: 0 | O29: 0 | P29: 0 | Q29: 1331 | R29: 2016-08-01 | S29: 2025-11-30
A30: Cruz, Michelle | B30: 1755 | C30: R-21 | D30: 4 Bed | E30: 4BR-1.5BA-TH | F30: 20 Read Street | G30: A1 20 Read St | H30: 1200 | I30: 2200 | J30: 0 | K30: 2200 | L30: 0 | M30: 0 | N30: 0 | O30: 25 | P30: 0 | Q30: 1520 | R30: 2015-12-01 | S30: 2025-04-30
A31: Cruz, Grace | B31: 2523 | C31: R-22 | D31: 4 Bed | E31: 4BR-1.5BA-TH | F31: 20 Read Street | G31: A1 20 Read St | H31: 1200 | I31: 1900 | J31: 2000 | K31: 0 | L31: -100 | M31: 0 | N31: 0 | O31: 25 | P31: 0 | Q31: 3375 | R31: 2020-09-01 | S31: 2025-08-31
A32: Best, Charlene | B32: 3390 | C32: R-23 | D32: 4 Bed | E32: 4BR-1.5BA-TH | F32: 20 Read Street | G32: A1 20 Read St | H32: 1200 | I32: 2000 | J32: 2100 | K32: 0 | L32: -100 | M32: 0 | N32: 0 | O32: 75 | P32: 0 | Q32: 1955 | R32: 2020-02-28 | S32: 2026-02-28
A33: Williams, Latasha | B33: 2012 | C33: R-24 | D33: 4 Bed | E33: 4BR-1.5BA-TH | F33: 20 Read Street | G33: A1 20 Read St | H33: 1200 | I33: 2200 | J33: 250 | K33: 1950 | L33: 0 | M33: 0 | N33: 0 | O33: 0 | P33: 0 | Q33: 1500 | R33: 2016-09-01 | S33: 2025-02-28
A34: Torres, Yesenia | B34: 3413 | C34: R-25 | D34: 2 Bed | E34: 2BR-1BA-TH | F34: 20 Read Street | G34: A1 20 Read St | H34: 770 | I34: =SUM(J34:M34) -> 1500 | J34: 1500 | K34: 0 | L34: 0 | M34: 0 | N34: 0 | O34: 25 | P34: 0 | Q34: 2450 | R34: 2020-03-28 | S34: 2024-10-31
A35: Martinez, Angelique | B35: 3679 | C35: R-26 | D35: 2 Bed | E35: 2BR-1BA-TH | F35: 20 Read Street | G35: A1 20 Read St | H35: 770 | I35: 1600 | J35: 0 | K35: 1600 | L35: 0 | M35: 0 | N35: 50 | O35: 0 | P35: 0 | Q35: 0 | R35: 2020-09-01 | S35: 2025-09-30
A36: Roldan, Carmen | B36: 1774 | C36: R-27 | D36: 2 Bed | E36: 2BR-1BA-TH | F36: 20 Read Street | G36: A1 20 Read St | H36: 770 | I36: 1700 | J36: 407 | K36: 1293 | L36: 0 | M36: 0 | N36: 25 | O36: 25 | P36: 0 | Q36: 1075 | R36: 2015-12-21 | S36: 2025-11-30
A37: Hardison, Shaquanda | B37: 4919 | C37: R-28 | D37: 2 Bed | E37: 2BR-1BA-TH | F37: 20 Read Street | G37: A1 20 Read St | H37: 770 | I37: 1700 | J37: 0 | K37: 1700 | L37: 0 | M37: 0 | N37: 0 | O37: 0 | P37: 0 | Q37: 0 | R37: 2022-10-17 | S37: 2025-10-31
A38: Mercedes, Stephany | B38: 1423 | C38: R-29 | D38: 2 Bed | E38: 2BR-1BA-TH | F38: 20 Read Street | G38: A1 20 Read St | H38: 770 | I38: 1700 | J38: 876 | K38: 824 | L38: 0 | M38: 0 | N38: 0 | O38: 25 | P38: 0 | Q38: 1135.3 | R38: 2014-12-05 | S38: 2025-11-30
A39: Abrams, Shone | B39: 1126 | C39: R-30 | D39: 2 Bed | E39: 2BR-1BA-TH | F39: 20 Read Street | G39: A1 20 Read St | H39: 770 | I39: 1600 | J39: 0 | K39: 1600 | L39: 0 | M39: 0 | N39: 0 | O39: 0 | P39: 0 | Q39: 189.74 | R39: 2013-10-17 | S39: 2025-07-31
A40: Holmes, Britney | B40: 1769 | C40: R-31 | D40: 2 Bed | E40: 2BR-1BA-TH | F40: 20 Read Street | G40: A1 20 Read St | H40: 770 | I40: 1700 | J40: 0 | K40: 1700 | L40: 0 | M40: 0 | N40: 0 | O40: 0 | P40: 0 | Q40: 250 | R40: 2020-02-28 | S40: 2025-05-31
A41: Golphin, Ashanti | B41: 1140 | C41: R-32 | D41: 2 Bed | E41: 2BR-1BA-TH | F41: 20 Read Street | G41: A1 20 Read St | H41: 770 | I41: 1600 | J41: 0 | K41: 1600 | L41: 0 | M41: 0 | N41: 0 | O41: 0 | P41: 0 | Q41: 460.27 | R41: 2012-08-01 | S41: 2025-04-30
A42: Gonzalez, Isabel | B42: 3014 | C42: R-33 | D42: 2 Bed | E42: 2BR-1BA-TH | F42: 20 Read Street | G42: A1 20 Read St | H42: 770 | I42: 1700 | J42: 737 | K42: 963 | L42: 0 | M42: 0 | N42: 0 | O42: 0 | P42: 0 | Q42: 1200 | R42: 2019-03-01 | S42: 2025-11-30
A43: Hairston, Tyquashaya | B43: 3247 | C43: R-34 | D43: 2 Bed | E43: 2BR-1BA-TH | F43: 20 Read Street | G43: A1 20 Read St | H43: 770 | I43: 1465 | J43: 18 | K43: 1447 | L43: 0 | M43: 0 | N43: 0 | O43: 0 | P43: 0 | Q43: 0 | R43: 2019-11-01
A44: Sanders, Yasmine | B44: 1919 | C44: R-35 | D44: 2 Bed | E44: 2BR-1BA-TH | F44: 20 Read Street | G44: A1 20 Read St | H44: 770 | I44: 1500 | J44: 211 | K44: 1289 | L44: 0 | M44: 0 | N44: 0 | O44: 0 | P44: 0 | Q44: 1030 | R44: 2020-02-28 | S44: 2021-02-27
A45: Madera, Johanna | B45: 1537 | C45: R-36 | D45: 2 Bed | E45: 2BR-1BA-TH | F45: 20 Read Street | G45: A1 20 Read St | H45: 770 | I45: 1325 | J45: 1325 | K45: 0 | L45: 0 | M45: 0 | N45: 0 | O45: 25 | P45: 0 | Q45: 2075.14 | R45: 2015-05-01 | S45: 2024-03-31
A46: Williams, Geniqua | B46: 2457 | C46: R-37 | D46: 2 Bed | E46: 2BR-1BA-TH | F46: 20 Read Street | G46: A1 20 Read St | H46: 770 | I46: 1700 | J46: 167 | K46: 1533 | L46: 0 | M46: 0 | N46: 0 | O46: 0 | P46: 0 | Q46: 1002 | R46: 2017-08-01 | S46: 2026-02-28
A47: Mercedes, JeanCarlos | B47: 3341 | C47: R-38 | D47: 2 Bed | E47: 2BR-1BA-TH | F47: 20 Read Street | G47: A1 20 Read St | H47: 770 | I47: 1475 | J47: 1575 | K47: 0 | L47: -100 | M47: 0 | N47: 150 | O47: 0 | P47: 0 | Q47: 2575 | R47: 2019-12-09 | S47: 2026-05-31
A48: Napoleoni, Ruben | B48: 4344 | C48: R-39 | D48: 2 Bed | E48: 2BR-1BA-TH | F48: 20 Read Street | G48: A1 20 Read St | H48: 770 | I48: 1400 | J48: 1500 | K48: 0 | L48: -100 | M48: 0 | N48: 0 | O48: 25 | P48: 0 | Q48: 75 | R48: 2021-09-01 | S48: 2025-08-31
A49: Johnson, Dominique | B49: 3478 | C49: R-40 | D49: 2 Bed | E49: 2BR-1BA-TH | F49: 20 Read Street | G49: A1 20 Read St | H49: 770 | I49: 1400 | J49: 1500 | K49: 0 | L49: -100 | M49: 0 | N49: 0 | O49: 25 | P49: 0 | Q49: 75 | R49: 2020-06-12 | S49: 2025-07-31
A50: Forney, Paris | B50: 3474 | C50: R-41 | D50: 2 Bed | E50: 2BR-1BA-TH | F50: 20 Read Street | G50: A1 20 Read St | H50: 770 | I50: 1300 | J50: 1300 | K50: 0 | L50: 0 | M50: 0 | N50: 0 | O50: 25 | P50: 0 | Q50: 0 | R50: 2020-05-29 | S50: 2021-05-31
A51: Rodriguez, Damaris | B51: 5637 | C51: R-42 | D51: 2 Bed | E51: 2BR-1BA-TH | F51: 20 Read Street | G51: A1 20 Read St | H51: 770 | I51: 1650 | J51: 1650 | K51: 0 | L51: 0 | M51: 0 | N51: 0 | O51: 50 | P51: 0 | Q51: 0 | R51: 2023-09-05 | S51: 2024-10-01
A52: Rodriguez, Jacqueline | B52: 3443 | C52: R-43 | D52: 2 Bed | E52: 2BR-1BA-TH | F52: 20 Read Street | G52: A1 20 Read St | H52: 770 | I52: 1400 | J52: 1500 | K52: 0 | L52: -100 | M52: 0 | N52: 0 | O52: 0 | P52: 0 | Q52: 2400 | R52: 2020-03-28 | S52: 2025-08-31
A53: Garcia, Brianna | B53: 6059 | C53: R-44 | D53: 2 Bed | E53: 2BR-1BA-TH | F53: 20 Read Street | G53: A1 20 Read St | H53: 770 | I53: 1651 | J53: 1751 | K53: 0 | L53: -100 | M53: 0 | N53: 0 | O53: 0 | P53: 0 | Q53: 3400 | R53: 2024-04-17 | S53: 2026-04-30
A54: Burnett, Damian | B54: 1575 | C54: C-01 | D54: 3 Bed | E54: 3BR-1BA-TH | F54: 675 Central Avenue | G54: A1 675 Central Ave | H54: 1050 | I54: 2250 | J54: 2250 | K54: 0 | M54: 0 | Q54: 0 | R54: 2015-05-01 | S54: 2016-04-30
A55: Santos, Joycevette | B55: 3378 | C55: C-02 | D55: 2 Bed | E55: 2BR-1BA-TH | F55: 675 Central Avenue | G55: A1 675 Central Ave | H55: 900 | I55: 1550 | J55: 1650 | K55: 0 | L55: -100 | M55: 0 | N55: 0 | O55: 0 | P55: 0 | Q55: 2675 | R55: 2020-02-12 | S55: 2025-11-30
A56: Blake, Daunne | B56: 6872 | C56: C-03 | D56: 2 Bed | E56: 2BR-1BA-TH | F56: 675 Central Avenue | G56: A1 675 Central Ave | H56: 900 | I56: 1800 | J56: 1900 | K56: 0 | L56: -100 | M56: 0 | N56: 0 | O56: 0 | P56: 0 | Q56: 3880 | R56: 2025-01-31 | S56: 2026-01-30
A57: Hamlette, Khadijah | B57: 4608 | C57: C-04 | D57: 2 Bed | E57: 2BR-1BA-TH | F57: 675 Central Avenue | G57: A1 675 Central Ave | H57: 990 | I57: 1800 | J57: 1900 | K57: 0 | L57: -100 | M57: 0 | N57: 0 | O57: 0 | P57: 0 | Q57: 3800 | R57: 2025-04-30 | S57: 2026-04-30
A58: Belizaire, Brayan | B58: 6000 | C58: C-05 | D58: 2 Bed | E58: 2BR-1BA-TH | F58: 675 Central Avenue | G58: A1 675 Central Ave | H58: 990 | I58: 1700 | J58: 1800 | K58: 0 | L58: -100 | M58: 0 | N58: 50 | O58: 0 | P58: 0 | Q58: 3400 | R58: 2024-04-15 | S58: 2026-04-30
A59: Duval, Kelly | B59: 2901 | C59: C-06 | D59: 2 Bed | E59: 2BR-1BA-TH | F59: 675 Central Avenue | G59: A1 675 Central Ave | H59: 900 | I59: 1650 | J59: 0 | K59: 1650 | L59: 0 | M59: 0 | N59: 0 | O59: 0 | P59: 0 | Q59: 2627 | R59: 2018-11-01 | S59: 2024-11-30
A60: Curry, Simitha | B60: 3345 | C60: C-07 | D60: 2 Bed | E60: 2BR-1BA-TH | F60: 675 Central Avenue | G60: A1 675 Central Ave | H60: 990 | I60: 1850 | J60: 73 | K60: 1777 | L60: 0 | M60: 0 | N60: 0 | O60: 0 | P60: 0 | Q60: 500 | R60: 2020-02-28 | S60: 2025-11-30
A61: Brookes, Kayla | B61: 5366 | C61: C-08 | D61: 2 Bed | E61: 2BR-1BA-TH | F61: 675 Central Avenue | G61: A1 675 Central Ave | H61: 990 | I61: 1675 | J61: 1675 | K61: 0 | L61: 0 | M61: 0 | N61: 0 | O61: 0 | P61: 0 | Q61: 3400 | R61: 2023-05-08 | S61: 2024-05-07
A62: Lindsay, Joan | B62: 3087 | C62: C-09 | D62: 2 Bed | E62: 2BR-1BA-TH | F62: 675 Central Avenue | G62: A1 675 Central Ave | H62: 990 | I62: 1550 | J62: 1650 | K62: 0 | L62: -100 | M62: 0 | N62: 0 | O62: 0 | P62: 0 | Q62: 1200 | R62: 2019-05-10 | S62: 2026-05-31
A63: Tiburcio, Candy | B63: 3170 | C63: C-10 | D63: 3 Bed | E63: 3BR-1BA-TH | F63: 675 Central Avenue | G63: A1 675 Central Ave | H63: 1050 | I63: 1750 | J63: 1850 | K63: 0 | L63: -100 | M63: 0 | N63: 0 | O63: 0 | P63: 0 | Q63: 0 | R63: 2019-08-01 | S63: 2026-02-28
A64: Seye, Serigne | B64: 3131 | C64: C-11 | D64: 3 Bed | E64: 3BR-1BA-TH | F64: 675 Central Avenue | G64: A1 675 Central Ave | H64: 1050 | I64: 1850 | J64: 1850 | K64: 0 | L64: 0 | M64: 0 | N64: 0 | O64: 0 | P64: 0 | Q64: 2975 | R64: 2019-07-01 | S64: 2025-02-28
A65: Campbell, Jennifer | B65: 3102 | C65: C-12 | D65: 2 Bed | E65: 2BR-1BA-TH | F65: 675 Central Avenue | G65: A1 675 Central Ave | H65: 900 | I65: 1500 | J65: 1600 | K65: 0 | L65: -100 | M65: 0 | N65: 0 | O65: 0 | P65: 0 | Q65: 2475 | R65: 2019-06-01 | S65: 2025-09-30
A66: <VACANT> | C66: C-13 | D66: 2 Bed | E66: 2BR-1BA-TH | F66: 675 Central Avenue | G66: A1 675 Central Ave | H66: 900 | I66: =SUM(J66:M66) -> 1800 | K66: 0 | M66: 1800 | Q66: 0
A67: Walker, Lannita | B67: 6485 | C67: C-14 | D67: 3 Bed | E67: 3BR-1BA-TH | F67: 675 Central Avenue | G67: A1 675 Central Ave | H67: 1050 | I67: 2150 | J67: 2250 | K67: 0 | L67: -100 | M67: 0 | N67: 50 | O67: 0 | P67: 0 | Q67: 4600 | R67: 2024-11-01 | S67: 2025-10-31
A68: Bell, Sandrekia | B68: 1060 | C68: C-15 | D68: 3 Bed | E68: 3BR-1BA-TH | F68: 675 Central Avenue | G68: A1 675 Central Ave | H68: 1050 | I68: 1690 | J68: 1690 | K68: 0 | L68: 0 | M68: 0 | N68: 0 | O68: 0 | P68: 0 | Q68: 875.21 | R68: 2019-10-18 | S68: 2025-06-30
A69: Davis, Kianna | B69: 6716 | C69: C-16 | D69: 2 Bed | E69: 2BR-1BA-TH | F69: 675 Central Avenue | G69: A1 675 Central Ave | H69: 900 | I69: 1750 | J69: 1850 | K69: 0 | L69: -100 | M69: 0 | N69: 0 | O69: 0 | P69: 0 | Q69: 50 | R69: 2024-12-27 | S69: 2025-12-31
A70: Serrano, Yomara | B70: 1086 | C70: C-17 | D70: 2 Bed | E70: 2BR-1BA-TH | F70: 675 Central Avenue | G70: A1 675 Central Ave | H70: 900 | I70: 1750 | J70: 621 | K70: 1129 | L70: 0 | M70: 0 | N70: 0 | O70: 0 | P70: 0 | Q70: 1375.35 | R70: 2019-06-14 | S70: 2025-06-30
A71: Santana, Angel | B71: 5360 | C71: C-18 | D71: 2 Bed | E71: 2BR-1BA-TH | F71: 675 Central Avenue | G71: A1 675 Central Ave | H71: 900 | I71: 1700 | J71: 1800 | K71: 0 | L71: -100 | M71: 0 | N71: 25 | O71: 0 | P71: 0 | Q71: 1825 | R71: 2023-06-03 | S71: 2026-05-31
A72: Rodriguez, Daniel | B72: 7404 | C72: C-19 | D72: 2 Bed | E72: 2BR-1BA-TH | F72: 675 Central Avenue | G72: A1 675 Central Ave | H72: 990 | I72: 1800 | J72: 1900 | K72: 0 | L72: -100 | M72: 0 | N72: 50 | O72: 0 | P72: 0 | Q72: 0 | R72: 2025-06-04 | S72: 2026-05-31
A73: Torres, Ashley | B73: 4753 | C73: C-20 | D73: 2 Bed | E73: 2BR-1BA-TH | F73: 675 Central Avenue | G73: A1 675 Central Ave | H73: 900 | I73: 1800 | J73: 1900 | K73: 0 | L73: -100 | M73: 0 | N73: 0 | O73: 0 | P73: 0 | Q73: 0 | R73: 2025-05-01 | S73: 2026-04-30
A74: Hunte, Mia | B74: 6601 | C74: C-21 | D74: 2 Bed | E74: 2BR-1BA-TH | F74: 675 Central Avenue | G74: A1 675 Central Ave | H74: 900 | I74: 1750 | J74: 1850 | K74: 0 | L74: -100 | M74: 0 | N74: 0 | O74: 0 | P74: 0 | Q74: 0 | R74: 2024-11-01 | S74: 2025-10-31
A75: Alford, Melida | B75: 2847 | C75: C-22 | D75: 2 Bed | E75: 2BR-1BA-TH | F75: 675 Central Avenue | G75: A1 675 Central Ave | H75: 990 | I75: 1800 | J75: 301 | K75: 1499 | L75: 0 | M75: 0 | N75: 0 | O75: 0 | P75: 0 | Q75: 1775 | R75: 2018-08-15 | S75: 2026-01-31
A76: Geyer, Jacquelyn | B76: 1067 | C76: C-23 | D76: 2 Bed | E76: 2BR-1BA-TH | F76: 675 Central Avenue | G76: A1 675 Central Ave | H76: 900 | I76: 1850 | J76: 775 | K76: 1075 | L76: 0 | M76: 0 | N76: 0 | O76: 0 | P76: 0 | Q76: 75 | R76: 2012-09-01 | S76: 2025-11-30
A77: Rentas, Belkins | B77: 2530 | C77: C-24 | D77: 3 Bed | E77: 3BR-1BA-TH | F77: 675 Central Avenue | G77: A1 675 Central Ave | H77: 1050 | I77: 1700 | J77: 1700 | K77: 0 | L77: 0 | M77: 0 | N77: 0 | O77: 0 | P77: 0 | Q77: 2775 | R77: 2017-11-11 | S77: 2025-07-31
A78: Davila, Ruth | B78: 2930 | C78: C-25 | D78: 3 Bed | E78: 3BR-1BA-TH | F78: 675 Central Avenue | G78: A1 675 Central Ave | H78: 1050 | I78: 2100 | J78: 1060 | K78: 1040 | L78: 0 | M78: 0 | N78: 0 | O78: 0 | P78: 0 | Q78: 575 | R78: 2018-12-14 | S78: 2025-10-31
A79: Ortiz, Isabel | B79: 3113 | C79: C-26 | D79: 2 Bed | E79: 2BR-1BA-TH | F79: 675 Central Avenue | G79: A1 675 Central Ave | H79: 900 | I79: 1550 | J79: 1650 | K79: 0 | L79: -100 | M79: 0 | N79: 0 | O79: 25 | P79: 0 | Q79: 75 | R79: 2019-08-01 | S79: 2025-09-30
A80: Watkins, Willie | B80: 3364 | C80: C-27 | D80: 2 Bed | E80: 2BR-1BA-TH | F80: 675 Central Avenue | G80: A1 675 Central Ave | H80: 990 | I80: 1500 | J80: 1600 | K80: 0 | L80: -100 | M80: 0 | N80: 0 | O80: 0 | P80: 0 | Q80: 75 | R80: 2020-02-01 | S80: 2025-10-31
A81: Hanton, Terry | B81: 1070 | C81: C-28 | D81: 2 Bed | E81: 2BR-1BA-TH | F81: 675 Central Avenue | G81: A1 675 Central Ave | H81: 900 | I81: 1800 | J81: 17 | K81: 1783 | L81: 0 | M81: 0 | N81: 0 | O81: 0 | P81: 0 | Q81: 75.01 | R81: 2019-02-15 | S81: 2026-01-31
A82: Ramos, Sahara | B82: 3089 | C82: C-29 | D82: 2 Bed | E82: 2BR-1BA-TH | F82: 675 Central Avenue | G82: A1 675 Central Ave | H82: 900 | I82: 1600 | J82: 1700 | K82: 0 | L82: -100 | M82: 0 | N82: 0 | O82: 0 | P82: 0 | Q82: 2475 | R82: 2019-06-01 | S82: 2026-02-28
A83: Paz, Rafael | B83: 2369 | C83: C-30 | D83: 3 Bed | E83: 3BR-1BA-TH | F83: 675 Central Avenue | G83: A1 675 Central Ave | H83: 1050 | I83: 1750 | J83: 1850 | K83: 0 | L83: -100 | M83: 0 | N83: 0 | O83: 0 | P83: 0 | Q83: 1038 | R83: 2017-03-01 | S83: 2026-02-28
A84: Wellington, Victoria | B84: 4366 | C84: C-31 | D84: 3 Bed | E84: 3BR-1BA-TH | F84: 675 Central Avenue | G84: A1 675 Central Ave | H84: 1050 | I84: 2200 | J84: 198 | K84: 2002 | L84: 0 | M84: 0 | N84: 0 | O84: 0 | P84: 0 | Q84: 50 | R84: 2021-11-01 | S84: 2025-11-30
A85: Napoleoni, Joshua | B85: 4268 | C85: C-32 | D85: 2 Bed | E85: 2BR-1BA-TH | F85: 675 Central Avenue | G85: A1 675 Central Ave | H85: 990 | I85: 1900 | J85: 0 | K85: 1900 | L85: 0 | M85: 0 | N85: 0 | O85: 0 | P85: 0 | Q85: 2750 | R85: 2021-07-02 | S85: 2026-03-31
A86: Avery, Ray | B86: 1849 | C86: C-33 | D86: 2 Bed | E86: 2BR-1BA-TH | F86: 675 Central Avenue | G86: A1 675 Central Ave | H86: 950 | I86: 1500 | J86: 1600 | K86: 0 | L86: -100 | M86: 0 | N86: 0 | O86: 0 | P86: 0 | Q86: 2400 | R86: 2016-03-01 | S86: 2026-02-28
A87: Fernandez, Jessica | B87: 6555 | C87: C-34 | D87: 2 Bed | E87: 2BR-1BA-TH | F87: 675 Central Avenue | G87: A1 675 Central Ave | H87: 950 | I87: 1750 | J87: 1850 | K87: 0 | L87: -100 | M87: 0 | N87: 0 | O87: 0 | P87: 0 | Q87: 3750 | R87: 2024-11-01 | S87: 2025-10-31
A88: Fonvert, Carine | B88: 6536 | C88: C-35 | D88: 2 Bed | E88: 2BR-1BA-TH | F88: 675 Central Avenue | G88: A1 675 Central Ave | H88: 900 | I88: 1750 | J88: 1850 | K88: 0 | L88: -100 | M88: 0 | N88: 0 | O88: 0 | P88: 0 | Q88: 50 | R88: 2024-09-30 | S88: 2025-09-30
A89: Francis-Wong, Maxine | B89: 4554 | C89: C-36 | D89: 3 Bed | E89: 3BR-1BA-TH | F89: 675 Central Avenue | G89: A1 675 Central Ave | H89: 1050 | I89: 1825 | J89: 1925 | K89: 0 | L89: -100 | M89: 0 | N89: 0 | O89: 0 | P89: 0 | Q89: 1175 | R89: 2022-06-01 | S89: 2026-05-31
A90: <VACANT> | C90: 223I-A1 | D90: 1 Bed | E90: 1BR | F90: Seabreeze | G90: A1 Seabreeze | H90: 524 | I90: 1300 | K90: 0 | M90: 1300 | Q90: 0
A91: Vann, Savan | B91: 4826 | C91: 223I-A2 | D91: 1 Bed | E91: 1BR | F91: Seabreeze | G91: A1 Seabreeze | H91: 605 | I91: 1175 | J91: 1275 | K91: 0 | L91: -100 | M91: 0 | N91: 0 | O91: 0 | P91: 0 | Q91: 0 | R91: 2022-08-25 | S91: 2025-09-30
A92: Singleton, Tyjah | B92: 5520 | C92: 223I-A3 | D92: Studio | E92: Studio | F92: Seabreeze | G92: A1 Seabreeze | H92: 451 | I92: 1140 | J92: 1140 | K92: 0 | L92: 0 | M92: 0 | N92: 0 | O92: 0 | P92: 0 | Q92: 75 | R92: 2023-07-14 | S92: 2025-07-31
A93: DuBois, Peyton | B93: 5922 | C93: 223I-A4 | D93: 1 Bed | E93: 1BR | F93: Seabreeze | G93: A1 Seabreeze | H93: 637 | I93: 1250 | J93: 1350 | K93: 0 | L93: -100 | M93: 0 | N93: 25 | O93: 0 | P93: 0 | Q93: 2700 | R93: 2024-03-01 | S93: 2025-02-28
A94: <VACANT> | C94: 223I-A5 | D94: 1 Bed | E94: 1BR - Balcony | F94: Seabreeze | G94: A1 Seabreeze | H94: 677 | I94: 1300 | K94: 0 | M94: 1300 | Q94: 0
A95: Singleton, Kayla | B95: 5620 | C95: 223I-A6 | D95: Studio | E95: Studio | F95: Seabreeze | G95: A1 Seabreeze | H95: 451 | I95: 1130 | J95: 1130 | K95: 0 | L95: 0 | M95: 0 | N95: 0 | O95: 0 | P95: 0 | Q95: 2180 | R95: 2024-01-19 | S95: 2026-01-31
A96: Martinez Barbosa, Wilma | B96: 4414 | C96: 223I-A7 | D96: 1 Bed | E96: 1BR | F96: Seabreeze | G96: A1 Seabreeze | H96: 605 | I96: 1200 | J96: 0 | K96: 1200 | L96: 0 | M96: 0 | N96: 0 | O96: 0 | P96: 0 | Q96: 1119 | R96: 2021-11-01 | S96: 2023-10-31
A97: Ferrier, Natalie R. | B97: 410 | C97: 223I-A8 | D97: 1 Bed | E97: 1BR | F97: Seabreeze | G97: A1 Seabreeze | H97: 605 | I97: 1200 | J97: 1300 | K97: 0 | L97: -100 | M97: 0 | N97: 0 | O97: 0 | P97: 0 | Q97: 1525.41 | R97: 2012-07-16 | S97: 2025-09-30
A98: Ribot, Clarissa | B98: 1742 | C98: 223I-B1 | D98: 1 Bed | E98: 1BR | F98: Seabreeze | G98: A1 Seabreeze | H98: 613 | I98: =SUM(J98:M98) -> 1300 | J98: 1300 | K98: 0 | L98: 0 | M98: 0 | N98: 0 | O98: 55 | P98: 0 | Q98: 222.5 | R98: 2019-09-03 | S98: 2025-09-30
A99: Samuelson, Karyn | B99: 2777 | C99: 223I-B2 | D99: 1 Bed | E99: 1BR | F99: Seabreeze | G99: A1 Seabreeze | H99: 613 | I99: 1200 | J99: 1300 | K99: 0 | L99: -100 | M99: 0 | N99: 25 | O99: 0 | P99: 0 | Q99: 1020 | R99: 2018-05-30 | S99: 2025-12-31
A100: Norman, Michael | B100: 3219 | C100: 223I-B3 | D100: Studio | E100: Studio | F100: Seabreeze | G100: A1 Seabreeze | H100: 459 | I100: 1000 | J100: 1000 | K100: 0 | L100: 0 | M100: 0 | N100: 0 | O100: 0 | P100: 0 | Q100: 1351.5 | R100: 2019-09-11 | S100: 2024-04-30
A101: Lauriano, Lashe | B101: 5091 | C101: 223I-B4 | D101: 1 Bed | E101: 1BR | F101: Seabreeze | G101: A1 Seabreeze | H101: 637 | I101: 1300 | J101: 1400 | K101: 0 | L101: -100 | M101: 0 | N101: 0 | O101: 0 | P101: 0 | Q101: 0 | R101: 2023-01-04 | S101: 2026-01-31
A102: Greenidge, Sylvester | B102: 5684 | C102: 223I-B5 | D102: 1 Bed | E102: 1BR - Balcony | F102: Seabreeze | G102: A1 Seabreeze | H102: 685 | I102: 1350 | J102: 1450 | K102: 0 | L102: -100 | M102: 0 | N102: 0 | O102: 0 | P102: 0 | Q102: 2875 | R102: 2023-09-25 | S102: 2025-10-31
A103: Cohen, Ronald | B103: 133 | C103: 223I-B6 | D103: Studio | E103: Studio | F103: Seabreeze | G103: A1 Seabreeze | H103: 459 | I103: 950 | J103: 1050 | K103: 0 | L103: -100 | M103: 0 | N103: 0 | O103: 0 | P103: 0 | Q103: 1300.35 | R103: 2008-04-30 | S103: 2025-07-31
A104: Brown, Reneika | B104: 5952 | C104: 223I-B7 | D104: 1 Bed | E104: 1BR | F104: Seabreeze | G104: A1 Seabreeze | H104: 613 | I104: 1275 | J104: 1375 | K104: 0 | L104: -100 | M104: 0 | N104: 0 | O104: 0 | P104: 0 | Q104: 2650 | R104: 2024-02-29 | S104: 2026-02-28
A105: <VACANT> | C105: 223I-B8 | D105: 1 Bed | E105: 1BR | F105: Seabreeze | G105: A1 Seabreeze | H105: 613 | I105: 1300 | K105: 0 | M105: 1300 | Q105: 0
A106: <VACANT> | C106: 223I-C1 | D106: 1 Bed | E106: 1BR | F106: Seabreeze | G106: A1 Seabreeze | H106: 621 | I106: 1300 | K106: 0 | M106: 1300 | Q106: 0
A107: Vitalise, Vanise | B107: 5612 | C107: 223I-C2 | D107: 1 Bed | E107: 1BR | F107: Seabreeze | G107: A1 Seabreeze | H107: 613 | I107: 1265 | J107: 1365 | K107: 0 | L107: -100 | M107: 0 | N107: 0 | O107: 0 | P107: 0 | Q107: 0 | R107: 2023-08-16 | S107: 2025-09-30
A108: Franklin, Michael | B108: 4013 | C108: 223I-C3 | D108: Studio | E108: Studio | F108: Seabreeze | G108: A1 Seabreeze | H108: 468 | I108: 1000 | J108: 1100 | K108: 0 | L108: -100 | M108: 0 | N108: 0 | O108: 0 | P108: 0 | Q108: 1388 | R108: 2021-02-25 | S108: 2025-11-30
A109: White, Nathaniel | B109: 284 | C109: 223I-C4 | D109: 1 Bed | E109: 1BR | F109: Seabreeze | G109: A1 Seabreeze | H109: 637 | I109: 1025 | J109: 1125 | K109: 0 | L109: -100 | M109: 0 | N109: 0 | O109: 30 | P109: 0 | Q109: 709.03 | R109: 2011-01-01 | S109: 2025-12-31
A110: Webb Rodriguez, Emma | B110: 6873 | C110: 223I-C5 | D110: 1 Bed | E110: 1BR - Balcony | F110: Seabreeze | G110: A1 Seabreeze | H110: 693 | I110: 1425 | J110: 1525 | K110: 0 | L110: -100 | M110: 0 | N110: 0 | O110: 0 | P110: 0 | Q110: 0 | R110: 2025-01-31 | S110: 2026-01-30
A111: Vega, Victor | B111: 5966 | C111: 223I-C6 | D111: Studio | E111: Studio | F111: Seabreeze | G111: A1 Seabreeze | H111: 468 | I111: 1050 | J111: 1150 | K111: 0 | L111: -100 | M111: 0 | N111: 0 | O111: 0 | P111: 0 | Q111: 2260 | R111: 2024-05-04 | S111: 2026-04-30
A112: Nieves, Teresa | B112: 5919 | C112: 223I-C7 | D112: 1 Bed | E112: 1BR | F112: Seabreeze | G112: A1 Seabreeze | H112: 621 | I112: 1300 | J112: 1400 | K112: 0 | L112: -100 | M112: 0 | N112: 0 | O112: 0 | P112: 0 | Q112: 0 | R112: 2025-02-07 | S112: 2026-02-06
A113: Tyson, Isadora | B113: 6799 | C113: 223I-C8 | D113: 1 Bed | E113: 1BR | F113: Seabreeze | G113: A1 Seabreeze | H113: 621 | I113: 1300 | J113: 1400 | K113: 0 | L113: -100 | M113: 0 | N113: 25 | O113: 0 | P113: 0 | Q113: 0 | R113: 2025-01-31 | S113: 2026-01-30
A114: Veguilla-Rivera, Maria | B114: 2627 | C114: 760A-D1 | D114: 2 Bed | E114: 2BR - 2Bath | F114: Seabreeze | G114: A1 Seabreeze | H114: 840 | I114: 1516 | J114: 1616 | K114: 0 | L114: -100 | M114: 0 | N114: 0 | O114: 0 | P114: 0 | Q114: 0 | R114: 2018-02-02 | S114: 2026-06-30
A115: McKnight, Jakida | B115: 5740 | C115: 760A-D2 | D115: 1 Bed | E115: 1BR - Balcony | F115: Seabreeze | G115: A1 Seabreeze | H115: 693 | I115: 1400 | J115: 1500 | K115: 0 | L115: -100 | M115: 0 | N115: 0 | O115: 0 | P115: 0 | Q115: 750 | R115: 2024-12-31 | S115: 2025-12-31
A116: Virella, Victoria | B116: 6470 | C116: 760A-D3 | D116: Studio | E116: Studio - Balcony | F116: Seabreeze | G116: A1 Seabreeze | H116: 532 | I116: 1150 | J116: 1250 | K116: 0 | L116: -100 | M116: 0 | N116: 0 | O116: 0 | P116: 0 | Q116: 2550 | R116: 2024-10-01 | S116: 2025-09-30
A117: Tate, Galen | B117: 3213 | C117: 760A-D4 | D117: Studio | E117: Studio - Balcony | F117: Seabreeze | G117: A1 Seabreeze | H117: 532 | I117: 1025 | J117: 1125 | K117: 0 | L117: -100 | M117: 0 | N117: 0 | O117: 0 | P117: 0 | Q117: 991 | R117: 2019-09-03 | S117: 2025-10-31
A118: Eady, Eric | B118: 167 | C118: 760A-D5 | D118: 2 Bed | E118: 2BR | F118: Seabreeze | G118: A1 Seabreeze | H118: 798 | I118: 1600 | J118: 285 | K118: 1315 | L118: 0 | M118: 0 | N118: 0 | O118: 0 | P118: 0 | Q118: 951.24 | R118: 2017-06-07 | S118: 2025-06-30
A119: Bowen, Adewali | B119: 5374 | C119: 760A-D6 | D119: 2 Bed | E119: 2BR | F119: Seabreeze | G119: A1 Seabreeze | H119: 766 | I119: 1675 | J119: 1675 | K119: 0 | L119: 0 | M119: 0 | N119: 0 | O119: 0 | P119: 0 | Q119: 3350 | R119: 2023-05-10 | S119: 2024-05-31
A120: Ortiz, Joshua | B120: 3972 | C120: 760A-D7 | D120: 1 Bed | E120: 1BR | F120: Seabreeze | G120: A1 Seabreeze | H120: 613 | I120: 1300 | J120: 1300 | K120: 0 | L120: 0 | M120: 0 | N120: 0 | O120: 0 | P120: 0 | Q120: 2275 | R120: 2022-04-01 | S120: 2025-07-31
A121: Mclaughlin, Justin | B121: 6512 | C121: 760A-D8 | D121: Studio | E121: Studio | F121: Seabreeze | G121: A1 Seabreeze | H121: 468 | I121: 1050 | J121: 1150 | K121: 0 | L121: -100 | M121: 0 | N121: 0 | O121: 0 | P121: 0 | Q121: 2300 | R121: 2024-09-17 | S121: 2025-09-30
A122: Sanjurjo, Louis | B122: 5587 | C122: 760A-D9 | D122: Studio | E122: Studio | F122: Seabreeze | G122: A1 Seabreeze | H122: 468 | I122: 1100 | J122: 1100 | K122: 0 | L122: 0 | M122: 0 | N122: 0 | O122: 0 | P122: 0 | Q122: 2200 | R122: 2023-08-03 | S122: 2024-09-30
A123: <VACANT> | C123: 760A-D10 | D123: 1 Bed | E123: 1BR | F123: Seabreeze | G123: A1 Seabreeze | H123: 613 | I123: 1300 | K123: 0 | M123: 1300 | Q123: 0
A124: Best, Shayna | B124: 3599 | C124: 760A-D11 | D124: Studio | E124: Studio | F124: Seabreeze | G124: A1 Seabreeze | H124: 484 | I124: 1025 | J124: 1025 | K124: 0 | L124: 0 | M124: 0 | N124: 0 | O124: 0 | P124: 0 | Q124: 1755 | R124: 2020-07-31 | S124: 2022-12-31
A125: Ruiz, Blanca | B125: 3404 | C125: 760A-D12 | D125: 2 Bed | E125: 2BR | F125: Seabreeze | G125: A1 Seabreeze | H125: 798 | I125: 1400 | J125: 1500 | K125: 0 | L125: -100 | M125: 0 | N125: 0 | O125: 0 | P125: 0 | Q125: 1325 | R125: 2020-02-19 | S125: 2025-08-31
A126: Campos-Santos, Nemesis | B126: 5821 | C126: 760A-E1 | D126: 2 Bed | E126: 2BR - 2Bath | F126: Seabreeze | G126: A1 Seabreeze | H126: 840 | I126: 1750 | J126: 1750 | K126: 0 | L126: 0 | M126: 0 | N126: 50 | O126: 0 | P126: 0 | Q126: 3575 | R126: 2023-11-21 | S126: 2024-12-31
A127: Ortiz, Carol | B127: 5512 | C127: 760A-E2 | D127: 1 Bed | E127: 1BR - Balcony | F127: Seabreeze | G127: A1 Seabreeze | H127: 693 | I127: 1400 | J127: 1500 | K127: 0 | L127: -100 | M127: 0 | N127: 0 | O127: 0 | P127: 0 | Q127: 2250 | R127: 2023-06-21 | S127: 2025-07-31
A128: Braun, Allison | B128: 4918 | C128: 760A-E3 | D128: Studio | E128: Studio - Balcony | F128: Seabreeze | G128: A1 Seabreeze | H128: 532 | I128: 1250 | J128: 1250 | K128: 0 | L128: 0 | M128: 0 | N128: 0 | O128: 0 | P128: 0 | Q128: 1800 | R128: 2022-11-03 | S128: 2023-08-31
A129: Nieves, Josean | B129: 6570 | C129: 760A-E4 | D129: Studio | E129: Studio - Balcony | F129: Seabreeze | G129: A1 Seabreeze | H129: 532 | I129: 1150 | J129: 1250 | K129: 0 | L129: -100 | M129: 0 | N129: 0 | O129: 0 | P129: -200 | Q129: 2500 | R129: 2024-10-01 | S129: 2025-09-30
A130: Martinez, Ramona | B130: 3682 | C130: 760A-E5 | D130: 2 Bed | E130: 2BR | F130: Seabreeze | G130: A1 Seabreeze | H130: 815 | I130: =SUM(J130:M130) -> 1550 | J130: 1650 | K130: 0 | L130: -100 | M130: 0 | N130: 0 | O130: 0 | P130: 0 | Q130: 1275 | R130: 2022-03-09 | S130: 2026-04-30
A131: Maldonado, Jackeline | B131: 4655 | C131: 760A-E6 | D131: 2 Bed | E131: 2BR | F131: Seabreeze | G131: A1 Seabreeze | H131: 774 | I131: 1700 | J131: 0 | K131: 1700 | L131: 0 | M131: 0 | N131: 0 | O131: 0 | P131: 0 | Q131: 0 | R131: 2022-06-16 | S131: 2026-06-30
A132: Lopez, Michael | B132: 3072 | C132: 760A-E7 | D132: 1 Bed | E132: 1BR | F132: Seabreeze | G132: A1 Seabreeze | H132: 621 | I132: 1100 | J132: 1200 | K132: 0 | L132: -100 | M132: 0 | N132: 0 | O132: 0 | P132: 0 | Q132: 0 | R132: 2020-03-12 | S132: 2026-04-30
A133: Ramos, Samuel | B133: 3600 | C133: 760A-E8 | D133: Studio | E133: Studio | F133: Seabreeze | G133: A1 Seabreeze | H133: 476 | I133: 1100 | J133: 1100 | K133: 0 | L133: 0 | M133: 0 | N133: 0 | O133: 0 | P133: 0 | Q133: 1180 | R133: 2020-07-17 | S133: 2026-05-31
A134: Hendricks, Kayla | B134: 7087 | C134: 760A-E9 | D134: Studio | E134: Studio | F134: Seabreeze | G134: A1 Seabreeze | H134: 476 | I134: 1100 | J134: 1200 | K134: 0 | L134: -100 | M134: 0 | N134: 0 | O134: 0 | P134: 0 | Q134: 0 | R134: 2025-04-30 | S134: 2026-04-30
A135: Roedts, Anthony | B135: 5885 | C135: 760A-E10 | D135: 1 Bed | E135: 1BR | F135: Seabreeze | G135: A1 Seabreeze | H135: 613 | I135: 1290 | J135: 1390 | K135: 0 | L135: -100 | M135: 0 | N135: 0 | O135: 0 | P135: 0 | Q135: 2100 | R135: 2024-01-05 | S135: 2026-01-04
A136: Majewski, Victoria | B136: 7122 | C136: 760A-E11 | D136: Studio | E136: Studio | F136: Seabreeze | G136: A1 Seabreeze | H136: 492 | I136: 1100 | J136: 1200 | K136: 0 | L136: -100 | M136: 0 | N136: 0 | O136: 0 | P136: 0 | Q136: 2400 | R136: 2025-04-04 | S136: 2026-04-03
A137: Penix Jr, Ryshon | B137: 6354 | C137: 760A-E12 | D137: 2 Bed | E137: 2BR | F137: Seabreeze | G137: A1 Seabreeze | H137: 806 | I137: 1800 | J137: 0 | K137: 1800 | L137: 0 | M137: 0 | N137: 0 | O137: 0 | P137: 0 | Q137: 0 | R137: 2025-05-31 | S137: 2026-05-30
A138: Rivera, Maria | B138: 1904 | C138: 760A-F1 | D138: 2 Bed | E138: 2BR - 2Bath | F138: Seabreeze | G138: A1 Seabreeze | H138: 840 | I138: 1100 | J138: 1200 | K138: 0 | L138: -100 | M138: 0 | N138: 0 | O138: 0 | P138: -200 | Q138: 1225 | R138: 2018-06-30 | S138: 2026-01-31
A139: Kligerman, Land | B139: 1034 | C139: 760A-F2 | D139: 1 Bed | E139: 1BR - Balcony | F139: Seabreeze | G139: A1 Seabreeze | H139: 702 | I139: 1300 | J139: 1300 | K139: 0 | L139: 0 | M139: 0 | N139: 50 | O139: 0 | P139: 0 | Q139: 0 | R139: 2019-09-14 | S139: 2022-09-30
A140: Garcia Torres, Herlan | B140: 7200 | C140: 760A-F3 | D140: Studio | E140: Studio - Balcony | F140: Seabreeze | G140: A1 Seabreeze | H140: 532 | I140: 1150 | J140: 1250 | K140: 0 | L140: -100 | M140: 0 | N140: 0 | O140: 0 | P140: 0 | Q140: 0 | R140: 2025-04-30 | S140: 2026-04-30
A141: Knowles, John | B141: 6009 | C141: 760A-F4 | D141: Studio | E141: Studio - Balcony | F141: Seabreeze | G141: A1 Seabreeze | H141: 540 | I141: 1150 | J141: 1250 | K141: 0 | L141: -100 | M141: 0 | N141: 100 | O141: 0 | P141: 0 | Q141: 2400 | R141: 2024-05-01 | S141: 2026-04-30
A142: Castillo, Briana | B142: 7171 | C142: 760A-F5 | D142: 2 Bed | E142: 2BR | F142: Seabreeze | G142: A1 Seabreeze | H142: 815 | I142: 1750 | J142: 1850 | K142: 0 | L142: -100 | M142: 0 | N142: 0 | O142: 0 | P142: 0 | Q142: 0 | R142: 2025-03-21 | S142: 2026-04-30
A143: Floyde, Jamilah | B143: 2884 | C143: 760A-F6 | D143: 2 Bed | E143: 2BR | F143: Seabreeze | G143: A1 Seabreeze | H143: 785 | I143: 1450 | J143: 1550 | K143: 0 | L143: -100 | M143: 0 | N143: 0 | O143: 0 | P143: 0 | Q143: 2600 | R143: 2018-09-14 | S143: 2025-09-30
A144: Rosa-Garcia, Abner | B144: 2576 | C144: 760A-F7 | D144: 1 Bed | E144: 1BR | F144: Seabreeze | G144: A1 Seabreeze | H144: 629 | I144: 1125 | J144: 1225 | K144: 0 | L144: -100 | M144: 0 | N144: 0 | O144: 50 | P144: 0 | Q144: 880 | R144: 2018-11-01 | S144: 2025-08-31
A145: Battle, Samray | B145: 3415 | C145: 760A-F8 | D145: Studio | E145: Studio | F145: Seabreeze | G145: A1 Seabreeze | H145: 484 | I145: 1020 | J145: 1120 | K145: 0 | L145: -100 | M145: 0 | N145: 0 | O145: 0 | P145: 0 | Q145: 975 | R145: 2020-03-06 | S145: 2026-02-28
A146: Thompson-Nicky, Katrell | B146: 3367 | C146: 760A-F9 | D146: Studio | E146: Studio | F146: Seabreeze | G146: A1 Seabreeze | H146: 476 | I146: 1000 | J146: 1100 | K146: 0 | L146: -100 | M146: 0 | N146: 0 | O146: 0 | P146: 0 | Q146: 840 | R146: 2020-01-31 | S146: 2026-01-31
A147: Servai, Pooja | B147: 3071 | C147: 760A-F10 | D147: 1 Bed | E147: 1BR | F147: Seabreeze | G147: A1 Seabreeze | H147: 629 | I147: 1250 | J147: 1350 | K147: 0 | L147: -100 | M147: 0 | N147: 0 | O147: 0 | P147: 0 | Q147: 2000 | R147: 2019-03-21 | S147: 2025-12-31
A148: Achille jr., Alix | B148: 2970 | C148: 760A-F11 | D148: Studio | E148: Studio | F148: Seabreeze | G148: A1 Seabreeze | H148: 500 | I148: 1150 | J148: 555 | K148: 595 | L148: 0 | M148: 0 | N148: 0 | O148: 0 | P148: 0 | Q148: 1660 | R148: 2018-12-01 | S148: 2026-01-31
A149: Toure, Alkaire | B149: 5106 | C149: 760A-F12 | D149: 2 Bed | E149: 2BR | F149: Seabreeze | G149: A1 Seabreeze | H149: 806 | I149: 1600 | J149: 1700 | K149: 0 | L149: -100 | M149: 0 | N149: 0 | O149: 0 | P149: 0 | Q149: 0 | R149: 2023-01-18 | S149: 2026-02-28
I150: =SUM(I2:I149) -> 236427 | J150: =SUM(J2:J149) -> 167958 | K150: 65469 | L150: -7800 | M150: 10800 | N150: 775 | O150: 805 | P150: -1600 | Q150: 194485.93

Sheet T12_170 Read_6.10.2025
B1: Chart of Account | C1: Account Type | D1: Parent | E1: 2025-06-24 | F1: 2025-07-24 | G1: 2025-08-24 | H1: 2025-09-24 | I1: 2025-10-24 | J1: 2025-11-24 | K1: 2025-12-24 | L1: 2025-01-25 | M1: 2025-02-25 | N1: 2025-03-25 | O1: 2025-04-25 | P1: 2025-05-25 | Q1: TOTAL
A2: late | B2: 4401 Late Fees | C2: Income | E2: 0 | F2: 0 | G2: 50 | H2: 25 | I2: 75 | J2: 50 | K2: 0 | L2: 50 | M2: 50 | N2: 50 | O2: 0 | P2: 100 | Q2: =SUM(E2:P2) -> 450
A3: misc | B3: 4010 Legal | C3: Income | E3: 0 | F3: 0 | G3: 0 | H3: 0 | I3: 55 | J3: 890 | K3: 0 | L3: 0 | M3: 0 | N3: 0 | O3: 0 | P3: 0 | Q3: 945
A4: misc | B4: 4400 Application Fees | C4: Income | E4: 94 | F4: 100 | G4: 0 | H4: 0 | I4: 0 | J4: 0 | K4: 0 | L4: 0 | M4: 0 | N4: 0 | O4: 0 | P4: 0 | Q4: 194
A5: parking | B5: 4907 Parking | C5: Income | E5: 0 | F5: 0 | G5: 0 | H5: 0 | I5: 30 | J5: 0 | K5: 0 | L5: 0 | M5: 0 | N5: 0 | O5: 0 | P5: 0 | Q5: 30
A6: rent | B6: 4200 Residential Rental Income | C6: Income | E6: 4142 | F6: 3147 | G6: 4172 | H6: 4832 | I6: 5415 | J6: 4105 | K6: 4728 | L6: 5228 | M6: 4876 | N6: 5150 | O6: 5055 | P6: 4928 | Q6: 55778
A7: rent | B7: 4201 Government Subsidized Residential Rental Income | C7: Income | E7: 5103 | F7: 5103 | G7: 5103 | H7: 5103 | I7: 5250 | J7: 9353 | K7: 7650 | L7: 7650 | M7: 7650 | N7: 7850 | O7: 7850 | P7: 7850 | Q7: 81515
B8: Total Income | E8: =SUM(E2:E7) -> 9339 | F8: 8350 | G8: 9325 | H8: 9960 | I8: 10825 | J8: 14398 | K8: 12378 | L8: 12928 | M8: 12576 | N8: 13050 | O8: 12905 | P8: 12878 | Q8: 138912
B10: Expense
A11: admin | B11: 5002 Charity | C11: Expense | E11: 0 | F11: 0 | G11: 0 | H11: 0 | I11: 0 | J11: 0 | K11: 0 | L11: 0 | M11: 6.56 | N11: 0 | O11: 0 | P11: 0 | Q11: =SUM(E11:P11) -> 6.56
A12: admin | B12: 5305 Bank Service Charge | C12: Expense | E12: 0 | F12: 0.95 | G12: 0 | H12: 0 | I12: 0 | J12: 0 | K12: 0 | L12: 0.95 | M12: 0 | N12: 15 | O12: 0 | P12: 0 | Q12: 16.9
A13: admin | B13: 6004 Administration Expense | C13: Expense | D13: 5320 Professional Fees | E13: 99.04 | F13: 149.32 | G13: 99.19 | H13: 100.81 | I13: 99.33 | J13: 95.27 | K13: 203.56 | L13: 101.26 | M13: 119.63 | N13: 114.76 | O13: 110.71 | P13: 117.33 | Q13: 1410.21
A14: admin | B14: 5338 Credit Check | C14: Expense | E14: 0 | F14: 0 | G14: 0 | H14: 0 | I14: 0 | J14: 63.02 | K14: 0 | L14: 0 | M14: 0 | N14: 0 | O14: 0 | P14: 0 | Q14: 63.02
A15: admin | B15: 5512 Personal Property Tax | C15: Expense | D15: 5501 Taxes | E15: 0 | F15: 62.13 | G15: 0 | H15: 0 | I15: 0 | J15: 0 | K15: 0 | L15: 0 | M15: 0 | N15: 0 | O15: 0 | P15: 0 | Q15: 62.13
A16: admin | B16: 5504 Cable Internet Phone Service Expense | C16: Expense | E16: 4.19 | F16: 8.92 | G16: 8.86 | H16: 8.2 | I16: 8.76 | J16: 8.75 | K16: 9.09 | L16: 4.29 | M16: 9.03 | N16: 9.03 | O16: 9.03 | P16: 9.72 | Q16: 97.87
A17: admin | B17: 6019 Software | C17: Expense | D17: 6012 Liscenses and Memberships | E17: 0.19 | F17: 0.28 | G17: 0.28 | H17: 0.28 | I17: 0.28 | J17: 0.28 | K17: 0.28 | L17: 0.28 | M17: 0.28 | N17: 0.28 | O17: 0.28 | P17: 0.28 | Q17: 3.27
A18: admin | B18: 6021 Marketing and Information | C18: Expense | D18: 6012 Liscenses and Memberships | E18: 0 | F18: 0 | G18: 1.77 | H18: 0 | I18: 0 | J18: 0 | K18: 0 | L18: 0 | M18: 0 | N18: 0 | O18: 0 | P18: 0 | Q18: 1.77
A19: Contracts | B19: 5418 Cleaning Service Expense | C19: Expense | D19: 6049 Service Contracts | E19: 143.79 | F19: 222.42 | G19: 141.21 | H19: 139.39 | I19: 146.05 | J19: 144.27 | K19: 309.46 | L19: 146.48 | M19: 142.71 | N19: 156.03 | O19: 158.05 | P19: 153.51 | Q19: 2003.37
A20: Contracts | B20: 5344 Trash Service | C20: Expense | D20: 6049 Service Contracts | E20: 0 | F20: 960.36 | G20: 0 | H20: 0 | I20: 0 | J20: 770.52 | K20: 0 | L20: 0 | M20: 1027.36 | N20: 0 | O20: 0 | P20: 0 | Q20: 2758.24
A21: Contracts | B21: 5411 Snow Removal Contracts | C21: Expense | D21: 6049 Service Contracts | E21: 0 | F21: 0 | G21: 0 | H21: 0 | I21: 0 | J21: 0 | K21: 479 | L21: 479 | M21: 479 | N21: 479 | O21: 479 | P21: 479 | Q21: 2874
A22: Contracts | B22: 5413 Extermination Contracts | C22: Expense | D22: 6049 Service Contracts | E22: 0 | F22: 0 | G22: 0 | H22: 0 | I22: 0 | J22: 0 | K22: 0 | L22: 0 | M22: 0 | N22: 0 | O22: 0 | P22: 127.62 | Q22: 127.62
A23: Contracts | B23: 6050 Landscaping & Irrigation Contracts | C23: Expense | D23: 6049 Service Contracts | E23: 45.62 | F23: 0 | G23: 600 | H23: 225 | I23: 250 | J23: 250 | K23: 0 | L23: 0 | M23: 0 | N23: 400 | O23: 0 | P23: 0 | Q23: 1770.62
A24: ins | B24: 5312 Property | C24: Expense | D24: 5310 Insurance Expense | E24: 561.8 | F24: 1000 | G24: 500 | H24: 250 | I24: 300 | J24: 1000 | K24: 0 | L24: 200 | M24: 0 | N24: 447.47 | O24: 0 | P24: 0 | Q24: 4259.27
A25: ins | B25: 5326 Flood | C25: Expense | D25: 5310 Insurance Expense | E25: 0 | F25: 0 | G25: 0 | H25: 0 | I25: 0 | J25: 0 | K25: 446.39 | L25: 0 | M25: 0 | N25: 0 | O25: 0 | P25: 0 | Q25: 446.39
A26: ins | B26: 5342 Liability | C26: Expense | D26: 5310 Insurance Expense | E26: 500 | F26: 373.4 | G26: 500 | H26: 123.4 | I26: 1000 | J26: 1000 | K26: 0 | L26: 173.4 | M26: 0 | N26: 589.07 | O26: 0 | P26: 0 | Q26: 4259.27
A27: ins | B27: 5343 Insurance Misc Exp | C27: Expense | D27: 5310 Insurance Expense | E27: 0 | F27: 0 | G27: 0 | H27: 0 | I27: 6.01 | J27: 0 | K27: 0 | L27: 0 | M27: 0 | N27: 147.03 | O27: 5.12 | P27: 0 | Q27: 158.16
A28: ins | B28: 5351 Umbrella Policy | C28: Expense | D28: 5310 Insurance Expense | E28: 520.63 | F28: 0 | G28: 0 | H28: 0 | I28: 0 | J28: 0 | K28: 0 | L28: 0 | M28: 0 | N28: 0 | O28: 0 | P28: 0 | Q28: 520.63
A29: ins | B29: 5310 Other Insurance Expense | C29: Expense | E29: 0 | F29: 0 | G29: 0 | H29: 0 | I29: 0 | J29: 0 | K29: 0 | L29: 0 | M29: 0 | N29: 0 | O29: 0 | P29: 70.74 | Q29: 70.74
A30: leasing | B30: 5007 Leasing Expense | C30: Expense | E30: 91.51 | F30: 136.4 | G30: 93.05 | H30: 32.56 | I30: 75.44 | J30: 89.15 | K30: 170.48 | L30: 91.24 | M30: 170.89 | N30: 100.69 | O30: 101.51 | P30: 104.42 | Q30: 1257.34
A31: leasing | B31: 5008 Signs | C31: Expense | E31: 0 | F31: 0 | G31: 0 | H31: 0 | I31: 1.02 | J31: 0 | K31: 0 | L31: 0 | M31: 0 | N31: 0 | O31: 0 | P31: 0 | Q31: 1.02
A32: leasing | B32: 5301 Advertising | C32: Expense | E32: 0 | F32: 0 | G32: 0 | H32: 0 | I32: 1.53 | J32: 0 | K32: 0 | L32: 0.55 | M32: 0 | N32: 0 | O32: 5.91 | P32: 0 | Q32: 7.99
A33: manage | B33: 5204 Property Management Fees | C33: Expense | E33: 557.4 | F33: 560.34 | G33: 501 | H33: 559.5 | I33: 597.6 | J33: 649.5 | K33: 863.88 | L33: 742.68 | M33: 775.68 | N33: 754.56 | O33: 783 | P33: 774.3 | Q33: 8119.44
A34: payroll | B34: 5202 Maintenance Tech Expense | C34: Expense | D34: 5320 Professional Fees | E34: 488.3 | F34: 649.66 | G34: 438.7 | H34: 445.02 | I34: 416.85 | J34: 445.84 | K34: 932.31 | L34: 463.51 | M34: 506.73 | N34: 501.2 | O34: 498.41 | P34: 937.5 | Q34: 6724.03
A35: payroll | B35: 5348 Manager Expense | C35: Expense | D35: 5320 Professional Fees | E35: 149.93 | F35: 225.56 | G35: 149.37 | H35: 153.04 | I35: 152.22 | J35: 151.35 | K35: 301.28 | L35: 149.08 | M35: 154.49 | N35: 153.99 | O35: 153.12 | P35: 150.13 | Q35: 2043.56
A36: payroll | B36: 6006 Payroll Fees | C36: Expense | D36: 6005 Payroll | E36: 37.44 | F36: 41.5 | G36: 34.65 | H36: 40.2 | I36: 34.89 | J36: 35.63 | K36: 69.02 | L36: 33.12 | M36: 33.98 | N36: 33.11 | O36: 31.28 | P36: 31.76 | Q36: 456.58
A37: prof | B37: 5333 Eviction | C37: Expense | D37: 5320 Professional Fees:5322 Legal | E37: 0 | F37: 0 | G37: 0 | H37: 0 | I37: 0 | J37: 1545 | K37: 0 | L37: 0 | M37: 0 | N37: 0 | O37: 0 | P37: 0 | Q37: 1545
A38: prof | B38: 5334 Notice to Quit | C38: Expense | D38: 5320 Professional Fees:5322 Legal | E38: 0 | F38: 0 | G38: 0 | H38: 25 | I38: 0 | J38: 0 | K38: 0 | L38: 0 | M38: 0 | N38: 0 | O38: 0 | P38: 0 | Q38: 25
A39: prof | B39: 5324 Accountant | C39: Expense | D39: 5320 Professional Fees | E39: 0 | F39: 0 | G39: 0 | H39: 0 | I39: 0 | J39: 0 | K39: 0 | L39: 0 | M39: 0 | N39: 0 | O39: 318.18 | P39: 0 | Q39: 318.18
A40: R&M | B40: 5402 Plumbing | C40: Expense | D40: 5400 Repairs and Maintenance | E40: 0 | F40: 0 | G40: 0 | H40: 0 | I40: 0 | J40: 0 | K40: 0 | L40: 0 | M40: 0 | N40: 0 | O40: 21.74 | P40: 0 | Q40: 21.74
A41: R&M | B41: 5404 Supplies | C41: Expense | D41: 5400 Repairs and Maintenance | E41: 297.43 | F41: 5.67 | G41: 3.89 | H41: 3.1 | I41: 2.61 | J41: 0.58 | K41: 1.46 | L41: 28.85 | M41: 7.42 | N41: 0.81 | O41: 5.08 | P41: 0 | Q41: 356.9
A42: R&M | B42: 5405 Appliances | C42: Expense | D42: 5400 Repairs and Maintenance | E42: 0 | F42: 0 | G42: 0 | H42: 0 | I42: 0 | J42: 0 | K42: 0 | L42: 0 | M42: 27.54 | N42: 0 | O42: 0 | P42: 152.89 | Q42: 180.43
A43: R&M | B43: 5406 Locks / Lock Repair / Keys | C43: Expense | D43: 5400 Repairs and Maintenance | E43: 0 | F43: 0 | G43: 0 | H43: 0 | I43: 90.05 | J43: 0 | K43: 0 | L43: 0 | M43: 0 | N43: 0 | O43: 0 | P43: 0 | Q43: 90.05
A44: R&M | B44: 5410 Landscaping & Irrigation Supplies | C44: Expense | D44: 5400 Repairs and Maintenance | E44: 1.56 | F44: 9.09 | G44: 7.23 | H44: 4.63 | I44: 0 | J44: 0 | K44: 0 | L44: 0 | M44: 0 | N44: 0 | O44: 0 | P44: 0 | Q44: 22.51
A45: R&M | B45: 5412 Trash Removal | C45: Expense | D45: 5400 Repairs and Maintenance | E45: 143 | F45: 254.67 | G45: 143 | H45: 0 | I45: 0 | J45: 0 | K45: 69.13 | L45: 85.08 | M45: 53.17 | N45: 0 | O45: 152.08 | P45: 0 | Q45: 900.13
A46: R&M | B46: 5415 HVAC | C46: Expense | D46: 5400 Repairs and Maintenance | E46: 0 | F46: 0 | G46: 0 | H46: 34.4 | I46: 0 | J46: 0 | K46: 0 | L46: 1.12 | M46: 0 | N46: 0 | O46: 0 | P46: 0 | Q46: 35.52
A47: R&M | B47: 5416 Cleaning Supplies | C47: Expense | D47: 5400 Repairs and Maintenance | E47: 0 | F47: 0 | G47: 5.86 | H47: 2.53 | I47: 0 | J47: 7.9 | K47: 0 | L47: 27.72 | M47: 0 | N47: 3.35 | O47: 1.86 | P47: 0.96 | Q47: 50.18
A48: R&M | B48: 5500 Small Tools and Equipment | C48: Expense | E48: 37.38 | F48: 1.57 | G48: 0 | H48: 0 | I48: 0 | J48: 1.16 | K48: 0 | L48: 0 | M48: 0 | N48: 7.74 | O48: 0 | P48: 0 | Q48: 47.85
A49: Tax | B49: 5502 Property | C49: Expense | D49: 5501 Taxes | E49: 0 | F49: 8191.85 | G49: 0 | H49: 0 | I49: 0 | J49: 0 | K49: 0 | L49: 8191.85 | M49: 0 | N49: 0 | O49: 0 | P49: 0 | Q49: 16383.7
A50: util | B50: 5507 Sewer | C50: Expense | D50: 5506 Utilities | E50: 786.24 | F50: 0 | G50: 0 | H50: 557.76 | I50: 0 | J50: 0 | K50: 578.26 | L50: 0 | M50: 0 | N50: 739.64 | O50: 0 | P50: 0 | Q50: 2661.9
A51: util | B51: 5519 Apartment | C51: Expense | D51: 5506 Utilities:5508 Oil and Gas | E51: 0 | F51: 50.5 | G51: 0 | H51: 0 | I51: 33.5 | J51: 0 | K51: 0 | L51: 0 | M51: 0 | N51: 0 | O51: 0 | P51: 0 | Q51: 84
A52: util | B52: 5515 Owner | C52: Expense | D52: 5506 Utilities:5509 Electric | E52: 33.33 | F52: 34.81 | G52: 35.38 | H52: 36.95 | I52: 40.27 | J52: 71.27 | K52: 133.62 | L52: 170.47 | M52: 198.73 | N52: 150.85 | O52: 104 | P52: 50.84 | Q52: 1060.52
A53: util | B53: 5516 Apartment | C53: Expense | D53: 5506 Utilities:5509 Electric | E53: 0 | F53: 138.96 | G53: 0 | H53: 0 | I53: 102.07 | J53: 0 | K53: 0 | L53: 0 | M53: 0 | N53: 0 | O53: 0 | P53: 0 | Q53: 241.03
A54: util | B54: 5510 Water | C54: Expense | D54: 5506 Utilities | E54: 278.25 | F54: 274.95 | G54: 297.32 | H54: 258.4 | I54: 230.27 | J54: 235.29 | K54: 219.15 | L54: 302.55 | M54: 268.18 | N54: 280.87 | O54: 238.81 | P54: 267.25 | Q54: 3151.29
B55: Total Expense | E55: =SUM(E11:E54) -> 4777.03 | F55: 13353.31 | G55: 3560.76 | H55: 3000.17 | I55: 3588.75 | J55: 6564.78 | K55: 4786.37 | L55: 11393.48 | M55: 3981.38 | N55: 5084.48 | O55: 3177.17 | P55: 3428.25 | Q55: 66695.93
B57: NOI | E57: =E8-E55 -> 4561.97 | F57: -5003.31 | G57: 5764.24 | H57: 6959.83 | I57: 7236.25 | J57: 7833.22 | K57: 7591.63 | L57: 1534.52 | M57: 8594.62 | N57: 7965.52 | O57: 9727.83 | P57: 9449.75 | Q57: 72216.07

Sheet T12_Central_6.10.2025
B1: Income | C1: Account Type | D1: Parent | E1: 2025-06-24 | F1: 2025-07-24 | G1: 2025-08-24 | H1: 2025-09-24 | I1: 2025-10-24 | J1: 2025-11-24 | K1: 2025-12-24 | L1: 2025-01-25 | M1: 2025-02-25 | N1: 2025-03-25 | O1: 2025-04-25 | P1: 2025-05-25 | Q1: TOTAL
A2: late | B2: 4401 Late Fees | C2: Income | E2: 125 | F2: 150 | G2: 150 | H2: 175 | I2: 250 | J2: 225 | K2: 150 | L2: 225 | M2: 125 | N2: 225 | O2: 214 | P2: 261 | Q2: =SUM(E2:P2) -> 2275
A3: misc | B3: 4009 Miscellaneous Income | C3: Income | E3: 0 | F3: 0 | G3: 0 | H3: 35 | I3: 0 | J3: 0 | K3: 0 | L3: -1035.6 | M3: 0 | N3: 0 | O3: 0 | P3: 150 | Q3: -850.6
A4: misc | B4: 4010 Legal | C4: Income | E4: 35 | F4: 15 | G4: 495 | H4: 50 | I4: 0 | J4: 945 | K4: 0 | L4: 50 | M4: 0 | N4: 125 | O4: 50 | P4: 25 | Q4: 1790
A5: misc | B5: 4202 Reimbursement Income | C5: Income | E5: 0 | F5: 0 | G5: 0 | H5: 0 | I5: 0 | J5: 0 | K5: 0 | L5: 0 | M5: 0 | N5: 0 | O5: 0 | P5: 145.79 | Q5: 145.79
A6: misc | B6: 4400 Application Fees | C6: Income | E6: 0 | F6: 0 | G6: 0 | H6: 400 | I6: 200 | J6: 300 | K6: 0 | L6: 200 | M6: 80 | N6: 0 | O6: 80 | P6: 0 | Q6: 1260
A7: misc | B7: 4402 NSF Fees | C7: Income | E7: 0 | F7: 3 | G7: 0 | H7: 0 | I7: 50 | J7: 0 | K7: 50 | L7: 0 | M7: 0 | N7: 0 | O7: 100 | P7: 0 | Q7: 203
A8: parking | B8: 4907 Parking | C8: Income | E8: 600 | F8: 710 | G8: 635 | H8: 585 | I8: 686 | J8: 975 | K8: 695 | L8: 680 | M8: 725 | N8: 725 | O8: 695 | P8: 100 | Q8: 7811
A9: pet | B9: 4404 Pet Fees | C9: Income | E9: 125 | F9: 125 | G9: 125 | H9: 125 | I9: 125 | J9: 125 | K9: 175 | L9: 195 | M9: 175 | N9: 175 | O9: 175 | P9: 125 | Q9: 1770
A10: rent | B10: 4200 Residential Rental Income | C10: Income | E10: 37578 | F10: 40608 | G10: 42605 | H10: 33859 | I10: 39987 | J10: 44646 | K10: 44684 | L10: 41366 | M10: 41043 | N10: 46881 | O10: 44012 | P10: 42293 | Q10: 499562
A11: rent | B11: 4201 Government Subsidized Residential Rental Income | C11: Income | E11: 12935 | F11: 12994 | G11: 12991 | H11: 13274 | I11: 13274 | J11: 13879 | K11: 14990 | L11: 16079 | M11: 12681 | N11: 12130 | O11: 12294 | P11: 14354 | Q11: 161875
B12: Total Income | E12: =SUM(E2:E11) -> 51398 | F12: 54605 | G12: 57001 | H12: 48503 | I12: 54572 | J12: 61095 | K12: 60744 | L12: 57759.4 | M12: 54829 | N12: 60261 | O12: 57620 | P12: 57453.79 | Q12: 675841.19
B14: Expense
A15: admin | B15: 5002 Charity | C15: Expense | E15: 0 | F15: 0 | G15: 0 | H15: 0 | I15: 0 | J15: 0 | K15: 0 | L15: 0 | M15: 29.53 | N15: 0 | O15: 0 | P15: 0 | Q15: =SUM(E15:P15) -> 29.53
A16: admin | B16: 5305 Bank Service Charge | C16: Expense | E16: 5 | F16: 0 | G16: 0 | H16: 0 | I16: 0 | J16: 5 | K16: 0 | L16: 5 | M16: 0 | N16: 15 | O16: 0 | P16: 0 | Q16: 30
A17: admin | B17: 5314 Interest Expense | C17: Expense | E17: 0 | F17: 0 | G17: 0 | H17: 0 | I17: 0 | J17: 0 | K17: 0 | L17: 11.42 | M17: 0 | N17: 10.08 | O17: 0 | P17: 0 | Q17: 21.5
A18: admin | B18: 6004 Administration Expense | C18: Expense | D18: 5320 Professional Fees | E18: 445.65 | F18: 671.93 | G18: 446.35 | H18: 453.66 | I18: 446.93 | J18: 428.7 | K18: 916.02 | L18: 455.68 | M18: 538.31 | N18: 516.4 | O18: 498.16 | P18: 527.98 | Q18: 6345.77
A19: admin | B19: 5338 Credit Check | C19: Expense | E19: 0 | F19: 0 | G19: 0 | H19: 0 | I19: 392.17 | J19: 393.9 | K19: 26.56 | L19: 0 | M19: 105 | N19: 26.56 | O19: 0 | P19: 136.9 | Q19: 1081.09
A20: admin | B20: 5512 Personal Property Tax | C20: Expense | D20: 5501 Taxes | E20: 0 | F20: 266.78 | G20: 0 | H20: 0 | I20: 0 | J20: 0 | K20: 0 | L20: 0 | M20: 0 | N20: 0 | O20: 0 | P20: 0 | Q20: 266.78
A21: admin | B21: 5504 Cable Internet Phone Service Expense | C21: Expense | E21: 18.84 | F21: 40.14 | G21: 39.88 | H21: 36.89 | I21: 39.42 | J21: 39.31 | K21: 40.89 | L21: 19.29 | M21: 40.63 | N21: 40.63 | O21: 40.63 | P21: 43.72 | Q21: 440.27
A22: admin | B22: 6019 Software | C22: Expense | D22: 6012 Liscenses and Memberships | E22: 0.83 | F22: 1.25 | G22: 1.25 | H22: 1.25 | I22: 1.25 | J22: 1.25 | K22: 1.25 | L22: 1.25 | M22: 1.25 | N22: 1.25 | O22: 1.25 | P22: 1.25 | Q22: 14.58
A23: admin | B23: 6021 Marketing and Information | C23: Expense | D23: 6012 Liscenses and Memberships | E23: 0 | F23: 0 | G23: 7.97 | H23: 138.16 | I23: 0 | J23: 0 | K23: 0 | L23: 0 | M23: 0 | N23: 0 | O23: 0 | P23: 0 | Q23: 146.13
A24: admin | B24: 6034 Parking | C24: Expense | E24: 0 | F24: 0 | G24: 0 | H24: 0 | I24: 0 | J24: 0 | K24: 0 | L24: 0 | M24: 0 | N24: 0 | O24: 367.87 | P24: 99 | Q24: 466.87
A25: contract | B25: 5418 Cleaning Service Expense | C25: Expense | D25: 6049 Service Contracts | E25: 647.04 | F25: 1000.93 | G25: 635.43 | H25: 627.26 | I25: 657.19 | J25: 649.2 | K25: 1392.58 | L25: 659.16 | M25: 642.16 | N25: 702.13 | O25: 711.21 | P25: 690.76 | Q25: 9015.05
A26: contract | B26: 5344 Trash Service | C26: Expense | D26: 6049 Service Contracts | E26: 0 | F26: 3214.2 | G26: 0 | H26: 0 | I26: 0 | J26: 2410.65 | K26: 0 | L26: 0 | M26: 3214.2 | N26: 0 | O26: 0 | P26: 0 | Q26: 8839.05
A27: contract | B27: 5411 Snow Removal Contracts | C27: Expense | D27: 6049 Service Contracts | E27: 0 | F27: 0 | G27: 0 | H27: 0 | I27: 0 | J27: 0 | K27: 1064 | L27: 1064 | M27: 1064 | N27: 1064 | O27: 1064 | P27: 1064 | Q27: 6384
A28: contract | B28: 5413 Extermination Contracts | C28: Expense | D28: 6049 Service Contracts | E28: 0 | F28: 191.43 | G28: 0 | H28: 0 | I28: 893.34 | J28: 0 | K28: 0 | L28: 574.29 | M28: 0 | N28: 0 | O28: 0 | P28: 574.29 | Q28: 2233.35
A29: contract | B29: 6050 Landscaping & Irrigation Contracts | C29: Expense | D29: 6049 Service Contracts | E29: 0 | F29: 0 | G29: 1200 | H29: 3175 | I29: 275 | J29: 275 | K29: 300 | L29: 3150 | M29: 0 | N29: 800 | O29: 0 | P29: 0 | Q29: 9175
A30: ins | B30: 5312 Property | C30: Expense | D30: 5310 Insurance Expense | E30: 3500 | F30: 2000 | G30: 2000 | H30: 1500 | I30: 2500 | J30: 1500 | K30: 0 | L30: 5000 | M30: 0 | N30: 1166.73 | O30: 0 | P30: 0 | Q30: 19166.73
A31: ins | B31: 5326 Flood | C31: Expense | D31: 5310 Insurance Expense | E31: 0 | F31: 0 | G31: 0 | H31: 0 | I31: 0 | J31: 0 | K31: 2008.73 | L31: 0 | M31: 0 | N31: 0 | O31: 0 | P31: 0 | Q31: 2008.73
A32: ins | B32: 5342 Liability | C32: Expense | D32: 5310 Insurance Expense | E32: 3500 | F32: 1000 | G32: 2373.4 | H32: 3000 | I32: 73.4 | J32: 1873.4 | K32: 0 | L32: 6000 | M32: 0 | N32: 1346.53 | O32: 0 | P32: 0 | Q32: 19166.73
A33: ins | B33: 5343 Insurance Misc Exp | C33: Expense | D33: 5310 Insurance Expense | E33: 0 | F33: 0 | G33: 0 | H33: 0 | I33: 27.02 | J33: 0 | K33: 0 | L33: 0 | M33: 0 | N33: 661.64 | O33: 23.05 | P33: 0 | Q33: 711.71
A34: ins | B34: 5351 Umbrella Policy | C34: Expense | D34: 5310 Insurance Expense | E34: 2342.87 | F34: 0 | G34: 0 | H34: 0 | I34: 0 | J34: 0 | K34: 0 | L34: 0 | M34: 0 | N34: 0 | O34: 0 | P34: 0 | Q34: 2342.87
A35: ins | B35: 5310 Other Insurance Expense | C35: Expense | E35: 0 | F35: 0 | G35: 0 | H35: 0 | I35: 0 | J35: 0 | K35: 0 | L35: 0 | M35: 0 | N35: 0 | O35: 0 | P35: 318.31 | Q35: 318.31
A36: leasing | B36: 5007 Leasing Expense | C36: Expense | E36: 411.75 | F36: 613.78 | G36: 418.63 | H36: 146.42 | I36: 339.45 | J36: 401.12 | K36: 767.19 | L36: 410.53 | M36: 769.03 | N36: 453.11 | O36: 456.7 | P36: 469.83 | Q36: 5657.54
A37: leasing | B37: 5008 Signs | C37: Expense | E37: 0 | F37: 0 | G37: 0 | H37: 0 | I37: 4.58 | J37: 0 | K37: 0 | L37: 0 | M37: 0 | N37: 0 | O37: 0 | P37: 0 | Q37: 4.58
A38: leasing | B38: 5301 Advertising | C38: Expense | E38: 0 | F38: 0 | G38: 0 | H38: 0 | I38: 6.88 | J38: 0 | K38: 0 | L38: 2.5 | M38: 0 | N38: 0 | O38: 26.59 | P38: 0 | Q38: 35.97
A39: manage | B39: 5204 Property Management Fees | C39: Expense | E39: 3164.94 | F39: 3083.88 | G39: 3276.3 | H39: 3420.06 | I39: 2910.18 | J39: 3274.32 | K39: 3665.7 | L39: 3644.64 | M39: 3465.56 | N39: 3289.74 | O39: 3615.66 | P39: 3457.2 | Q39: 40268.18
A40: payroll | B40: 5202 Maintenance Tech Expense | C40: Expense | D40: 5320 Professional Fees | E40: 2197.21 | F40: 2923.31 | G40: 2574.11 | H40: 2002.62 | I40: 1875.83 | J40: 2006.2 | K40: 4195.4 | L40: 2085.7 | M40: 2280.29 | N40: 2255.34 | O40: 2242.87 | P40: 4218.73 | Q40: 30857.61
A41: payroll | B41: 5348 Manager Expense | C41: Expense | D41: 5320 Professional Fees | E41: 674.7 | F41: 1014.99 | G41: 672.17 | H41: 688.69 | I41: 685.02 | J41: 681.12 | K41: 1355.75 | L41: 670.83 | M41: 695.2 | N41: 692.96 | O41: 689.04 | P41: 675.61 | Q41: 9196.08
A42: payroll | B42: 6006 Payroll Fees | C42: Expense | D42: 6005 Payroll | E42: 168.48 | F42: 186.76 | G42: 155.92 | H42: 180.87 | I42: 156.97 | J42: 160.28 | K42: 310.6 | L42: 149.01 | M42: 152.88 | N42: 148.9 | O42: 140.72 | P42: 142.96 | Q42: 2054.35
A43: prof | B43: 5333 Eviction | C43: Expense | D43: 5320 Professional Fees:5322 Legal | E43: 0 | F43: 0 | G43: 0 | H43: 850 | I43: 0 | J43: 895 | K43: 0 | L43: 0 | M43: 0 | N43: 0 | O43: 0 | P43: 0 | Q43: 1745
A44: prof | B44: 5334 Notice to Quit | C44: Expense | D44: 5320 Professional Fees:5322 Legal | E44: 0 | F44: 100 | G44: 0 | H44: 25 | I44: 50 | J44: 0 | K44: 25 | L44: 0 | M44: 50 | N44: 0 | O44: 0 | P44: 0 | Q44: 250
A45: prof | B45: 5324 Accountant | C45: Expense | D45: 5320 Professional Fees | E45: 0 | F45: 0 | G45: 0 | H45: 0 | I45: 0 | J45: 0 | K45: 0 | L45: 0 | M45: 0 | N45: 0 | O45: 1431.82 | P45: 0 | Q45: 1431.82
A46: R&M | B46: 5402 Plumbing | C46: Expense | D46: 5400 Repairs and Maintenance | E46: 0 | F46: 81.78 | G46: 0 | H46: 107.73 | I46: 0 | J46: 0 | K46: -27.12 | L46: 0 | M46: 0 | N46: 0 | O46: 0 | P46: 0 | Q46: 162.39
A47: R&M | B47: 5404 Supplies | C47: Expense | D47: 5400 Repairs and Maintenance | E47: 73.35 | F47: 25.51 | G47: 17.51 | H47: 13.93 | I47: 11.78 | J47: 2.61 | K47: 1082.59 | L47: 129.79 | M47: 33.36 | N47: -5.12 | O47: 35.89 | P47: 0 | Q47: =SUM(E47:P47) -> 1421.2
A48: R&M | B48: 5405 Appliances | C48: Expense | D48: 5400 Repairs and Maintenance | E48: 0 | F48: 0 | G48: 0 | H48: 0 | I48: 0 | J48: 0 | K48: 0 | L48: 0 | M48: 123.93 | N48: 0 | O48: 0 | P48: 687.98 | Q48: 811.91
A49: R&M | B49: 5406 Locks / Lock Repair / Keys | C49: Expense | D49: 5400 Repairs and Maintenance | E49: 0 | F49: 0 | G49: 0 | H49: 0 | I49: 405.27 | J49: 0 | K49: 0 | L49: 0 | M49: 0 | N49: 0 | O49: 0 | P49: 0 | Q49: 405.27
A50: R&M | B50: 5408 Exterior Work | C50: Expense | D50: 5400 Repairs and Maintenance | E50: 800 | F50: 0 | G50: 0 | H50: 0 | I50: 0 | J50: 0 | K50: 0 | L50: 0 | M50: 0 | N50: 0 | O50: 0 | P50: 0 | Q50: 800
A51: R&M | B51: 5410 Landscaping & Irrigation Supplies | C51: Expense | D51: 5400 Repairs and Maintenance | E51: 456.17 | F51: 40.88 | G51: 32.55 | H51: 1840.57 | I51: 63.8 | J51: 0 | K51: 0 | L51: 0 | M51: 0 | N51: 0 | O51: 0 | P51: 314.8 | Q51: 2748.77
A52: R&M | B52: 5412 Trash Removal | C52: Expense | D52: 5400 Repairs and Maintenance | E52: 239.53 | F52: 266.12 | G52: 404.37 | H52: 670.01 | I52: 85.08 | J52: 0 | K52: 488.61 | L52: 212.7 | M52: 627.47 | N52: 191.43 | O52: 553.02 | P52: 345.63 | Q52: 4083.97
A53: R&M | B53: 5415 HVAC | C53: Expense | D53: 5400 Repairs and Maintenance | E53: 0 | F53: 0 | G53: 0 | H53: 0 | I53: 0 | J53: 0 | K53: 0 | L53: 5.04 | M53: 0 | N53: 0 | O53: 0 | P53: 160 | Q53: 165.04
A54: R&M | B54: 5416 Cleaning Supplies | C54: Expense | D54: 5400 Repairs and Maintenance | E54: 0 | F54: 0 | G54: 26.38 | H54: 11.39 | I54: 0 | J54: 35.58 | K54: 0 | L54: 124.73 | M54: 0 | N54: 15.08 | O54: 8.33 | P54: 4.31 | Q54: 225.8
A55: R&M | B55: 5420 Parking Lot | C55: Expense | D55: 5400 Repairs and Maintenance | E55: 0 | F55: 0 | G55: 0 | H55: 0 | I55: 0 | J55: 0 | K55: 0 | L55: 0 | M55: 0 | N55: 0 | O55: 0 | P55: 478.58 | Q55: 478.58
A56: R&M | B56: 5421 Windows | C56: Expense | D56: 5400 Repairs and Maintenance | E56: 0 | F56: 180.8 | G56: 0 | H56: 0 | I56: 0 | J56: 74.45 | K56: 0 | L56: 0 | M56: 0 | N56: 0 | O56: 15.48 | P56: 74.45 | Q56: 345.18
A57: R&M | B57: 5424 Hardware | C57: Expense | D57: 5400 Repairs and Maintenance | E57: 0 | F57: 0 | G57: 7.1 | H57: 0 | I57: 0 | J57: 0 | K57: 0 | L57: 0 | M57: 0 | N57: 0 | O57: 0 | P57: 0 | Q57: 7.1
A58: R&M | B58: 5430 Paint Supplies | C58: Expense | D58: 5400 Repairs and Maintenance | E58: 0 | F58: 0 | G58: 0 | H58: 169.02 | I58: 0 | J58: 0 | K58: 0 | L58: 0 | M58: 0 | N58: 0 | O58: 854.2 | P58: 0 | Q58: 1023.22
A59: R&M | B59: 5500 Small Tools and Equipment | C59: Expense | E59: 168.21 | F59: 7.08 | G59: 0 | H59: 0 | I59: 0 | J59: 5.21 | K59: 57.49 | L59: 0 | M59: 0 | N59: 34.83 | O59: 0 | P59: 0 | Q59: 272.82
A60: tax | B60: 5502 Property | C60: Expense | D60: 5501 Taxes | E60: 0 | F60: 36428.05 | G60: 0 | H60: 0 | I60: 0 | J60: 0 | K60: 0 | L60: 36428.05 | M60: 0 | N60: 0 | O60: 0 | P60: 0 | Q60: 72856.1
A61: util | B61: 5507 Sewer | C61: Expense | D61: 5506 Utilities | E61: 3682.56 | F61: 0 | G61: 0 | H61: 3890.88 | I61: 0 | J61: 0 | K61: 4321.3 | L61: 0 | M61: 0 | N61: 4982.78 | O61: 0 | P61: 0 | Q61: 16877.52
A62: util | B62: 5518 Owner | C62: Expense | D62: 5506 Utilities:5508 Oil and Gas | E62: 273.65 | F62: 0 | G62: 0 | H62: 850.12 | I62: 121.1 | J62: 864.22 | K62: 1380.51 | L62: 1279.85 | M62: 4831.95 | N62: 2789.36 | O62: 4250.11 | P62: 1446.57 | Q62: 18087.44
A63: util | B63: 5515 Owner | C63: Expense | D63: 5506 Utilities:5509 Electric | E63: 392.27 | F63: 417.24 | G63: 439.71 | H63: 433.84 | I63: 665.47 | J63: 875.14 | K63: 921.19 | L63: 946.59 | M63: 933.31 | N63: 914.1 | O63: 853.79 | P63: 594.59 | Q63: 8387.24
A64: util | B64: 5516 Apartment | C64: Expense | D64: 5506 Utilities:5509 Electric | E64: 0 | F64: 0 | G64: 0 | H64: 0 | I64: 48.29 | J64: 176.18 | K64: 212.93 | L64: 50.29 | M64: 14.94 | N64: 0 | O64: 0 | P64: 375.17 | Q64: 877.8
A65: util | B65: 5510 Water | C65: Expense | D65: 5506 Utilities | E65: 798.98 | F65: 798.98 | G65: 656.57 | H65: 745.01 | I65: 891.18 | J65: 1050.69 | K65: 992.4 | L65: 1314.34 | M65: 1076.09 | N65: 989.26 | O65: 657.92 | P65: 738.12 | Q65: 10709.54
B66: Total Expense | E66: =SUM(E15:E65) -> 23962.03 | F66: 54555.82 | G66: 15385.6 | H66: 24978.38 | I66: 13626.6 | J66: 18078.53 | K66: 25499.57 | L66: 64394.68 | M66: 20689.09 | N66: 23102.72 | O66: 18538.31 | P66: 17640.74 | Q66: 320452.07
B68: NOI | E68: =E12-E66 -> 27435.97 | F68: 49.18 | G68: 41615.4 | H68: 23524.62 | I68: 40945.4 | J68: 43016.47 | K68: 35244.43 | L68: -6635.28 | M68: 34139.91 | N68: 37158.28 | O68: 39081.69 | P68: 39813.05 | Q68: 355389.12

Sheet T12_20 Read_6.10.2025
B1: Income | C1: Account Type | D1: Parent | E1: 2025-06-24 | F1: 2025-07-24 | G1: 2025-08-24 | H1: 2025-09-24 | I1: 2025-10-24 | J1: 2025-11-24 | K1: 2025-12-24 | L1: 2025-01-25 | M1: 2025-02-25 | N1: 2025-03-25 | O1: 2025-04-25 | P1: 2025-05-25 | Q1: TOTAL
A2: late | B2: 4401 Late Fees | C2: Income | E2: 144 | F2: 171 | G2: 138 | H2: 32 | I2: 123 | J2: 22 | K2: 45 | L2: 250 | M2: 100 | N2: 294 | O2: 25 | P2: 257 | Q2: =SUM(E2:P2) -> 1601
A3: misc | B3: 4002 Interest | C3: Income | E3: 1562 | F3: 1938 | G3: 1454 | H3: 1567 | I3: 1911 | J3: 1858 | K3: 2018 | L3: 2092 | M3: 1798 | N3: 2061 | O3: 2099 | P3: 0 | Q3: 20358
A4: misc | B4: 4009 Miscellaneous Income | C4: Income | E4: -1000 | F4: -1000 | G4: -1000 | H4: -1000 | I4: -1000 | J4: -1000 | K4: -1000 | L4: -1000 | M4: -1000 | N4: -485 | O4: -1993 | P4: -358 | Q4: -11836
A5: misc | B5: 4010 Legal | C5: Income | E5: 50 | F5: 930 | G5: 0 | H5: 50 | I5: 0 | J5: 0 | K5: 0 | L5: 905 | M5: 0 | N5: 5 | O5: 2 | P5: 93 | Q5: 2035
A6: misc | B6: 4400 Application Fees | C6: Income | E6: 0 | F6: 140 | G6: 200 | H6: 0 | I6: 0 | J6: 450 | K6: 300 | L6: 25 | M6: 0 | N6: 0 | O6: 0 | P6: 300 | Q6: 1415
A7: misc | B7: 4402 NSF Fees | C7: Income | E7: 0 | F7: 0 | G7: 0 | H7: 0 | I7: 0 | J7: 0 | K7: 50 | L7: 0 | M7: 0 | N7: 0 | O7: 0 | P7: 50 | Q7: 100
A8: parking | B8: 4907 Parking | C8: Income | E8: 543 | F8: 487 | G8: 745 | H8: 480 | I8: 680 | J8: 530 | K8: 555 | L8: 530 | M8: 556 | N8: 533 | O8: 610 | P8: 610 | Q8: 6859
A9: pet | B9: 4404 Pet Fees | C9: Income | E9: 238 | F9: 200 | G9: 212 | H9: 200 | I9: 200 | J9: 125 | K9: 207 | L9: 150 | M9: 268 | N9: 347 | O9: 175 | P9: 175 | Q9: 2497
A10: rent | B10: 4200 Residential Rental Income | C10: Income | E10: 33591 | F10: 38158 | G10: 32963 | H10: 36381 | I10: 30338 | J10: 31041 | K10: 32863 | L10: 40567 | M10: 39602 | N10: 40853 | O10: 39067 | P10: 41904 | Q10: 437328
A11: rent | B11: 4201 Government Subsidized Residential Rental Income | C11: Income | E11: 36042 | F11: 34661 | G11: 36999 | H11: 36473 | I11: 34867 | J11: 32529 | K11: 32681 | L11: 33031 | M11: 36426 | N11: 46945 | O11: 36503 | P11: 36639 | Q11: 433796
B12: Total Income | E12: =SUM(E2:E11) -> 71170 | F12: 75685 | G12: 71711 | H12: 74183 | I12: 67119 | J12: 65555 | K12: 67719 | L12: 76550 | M12: 77750 | N12: 90553 | O12: 76488 | P12: 79670 | Q12: 894153
B14: Expense
A15: admin | B15: 5002 Charity | C15: Expense | E15: 0 | F15: 0 | G15: 0 | H15: 0 | I15: 0 | J15: 0 | K15: 0 | L15: 0 | M15: 36 | N15: 0 | O15: 0 | P15: 0 | Q15: =SUM(E15:P15) -> 36
A16: admin | B16: 5305 Bank Service Charge | C16: Expense | E16: 37 | F16: 40 | G16: 49 | H16: 43 | I16: 38 | J16: 42 | K16: 39 | L16: 39 | M16: 41 | N16: 57 | O16: 44 | P16: 50 | Q16: 519
A17: admin | B17: 5338 Credit Check | C17: Expense | E17: 77 | F17: 0 | G17: 245 | H17: 104 | I17: 0 | J17: 373 | K17: 240 | L17: 157 | M17: 0 | N17: 0 | O17: 0 | P17: 0 | Q17: 1196
A18: admin | B18: 5512 Personal Property Tax | C18: Expense | D18: 5501 Taxes | E18: 0 | F18: 267 | G18: 0 | H18: 0 | I18: 0 | J18: 0 | K18: 0 | L18: 0 | M18: 0 | N18: 0 | O18: 0 | P18: 0 | Q18: 267
A19: admin | B19: 5523 Annual Report Fee | C19: Expense | D19: 5501 Taxes | E19: 0 | F19: 0 | G19: 0 | H19: 0 | I19: 0 | J19: 0 | K19: 0 | L19: 0 | M19: 80 | N19: 0 | O19: 0 | P19: 0 | Q19: 80
A20: admin | B20: 5504 Cable Internet Phone Service Expense | C20: Expense | E20: 23 | F20: 49 | G20: 49 | H20: 45 | I20: 48 | J20: 48 | K20: 50 | L20: 24 | M20: 50 | N20: 50 | O20: 50 | P20: 53 | Q20: 539
A21: admin | B21: 6019 Software | C21: Expense | D21: 6012 Liscenses and Memberships | E21: 1 | F21: 2 | G21: 2 | H21: 2 | I21: 2 | J21: 2 | K21: 2 | L21: 2 | M21: 2 | N21: 2 | O21: 2 | P21: 2 | Q21: 23
A22: admin | B22: 6004 Administration Expense | C22: Expense | D22: 5320 Professional Fees | E22: 545 | F22: 821 | G22: 546 | H22: 554 | I22: 546 | J22: 524 | K22: 1120 | L22: 557 | M22: 658 | N22: 631 | O22: 609 | P22: 645 | Q22: 7756
A23: admin | B23: 6021 Marketing and Information | C23: Expense | D23: 6012 Liscenses and Memberships | E23: 0 | F23: 0 | G23: 10 | H23: 0 | I23: 0 | J23: 0 | K23: 0 | L23: 0 | M23: 0 | N23: 0 | O23: 0 | P23: 0 | Q23: 10
A24: Contracts | B24: 5418 Cleaning Service Expense | C24: Expense | D24: 6049 Service Contracts | E24: 791 | F24: 1223 | G24: 777 | H24: 767 | I24: 803 | J24: 793 | K24: 1702 | L24: 806 | M24: 785 | N24: 858 | O24: 869 | P24: 844 | Q24: 11018
A25: Contracts | B25: 5344 Trash Service | C25: Expense | D25: 6049 Service Contracts | E25: 0 | F25: 5375 | G25: 0 | H25: 0 | I25: 0 | J25: 4032 | K25: 0 | L25: 0 | M25: 5375 | N25: 0 | O25: 0 | P25: 0 | Q25: 14782
A26: Contracts | B26: 5411 Snow Removal Contracts | C26: Expense | D26: 6049 Service Contracts | E26: 0 | F26: 0 | G26: 0 | H26: 0 | I26: 0 | J26: 0 | K26: 1241 | L26: 1241 | M26: 1241 | N26: 1241 | O26: 1241 | P26: 1241 | Q26: 7446
A27: Contracts | B27: 5413 Extermination Contracts | C27: Expense | D27: 6049 Service Contracts | E27: 0 | F27: 308 | G27: 0 | H27: 0 | I27: 2233 | J27: 0 | K27: 0 | L27: 830 | M27: 0 | N27: 0 | O27: 0 | P27: 1914 | Q27: 5285
A28: Contracts | B28: 6050 Landscaping & Irrigation Contracts | C28: Expense | D28: 6049 Service Contracts | E28: 251 | F28: 100 | G28: 2025 | H28: 275 | I28: 275 | J28: 275 | K28: 580 | L28: 0 | M28: 0 | N28: 2000 | O28: 0 | P28: 0 | Q28: 5781
A29: ins | B29: 5312 Property | C29: Expense | D29: 5310 Insurance Expense | E29: 5000 | F29: 4000 | G29: 1000 | H29: 3000 | I29: 2500 | J29: 1500 | K29: 0 | L29: 5000 | M29: 0 | N29: 1426 | O29: 0 | P29: 0 | Q29: 23426
A30: ins | B30: 5326 Flood | C30: Expense | D30: 5310 Insurance Expense | E30: 0 | F30: 0 | G30: 0 | H30: 0 | I30: 0 | J30: 0 | K30: 2455 | L30: 0 | M30: 0 | N30: 0 | O30: 0 | P30: 0 | Q30: 2455
A31: ins | B31: 5342 Liability | C31: Expense | D31: 5310 Insurance Expense | E31: 5700 | F31: 1000 | G31: 3000 | H31: 1500 | I31: 3000 | J31: 2500 | K31: 0 | L31: 2373 | M31: 0 | N31: 4353 | O31: 0 | P31: 0 | Q31: 23426
A32: ins | B32: 5343 Insurance Misc Exp | C32: Expense | D32: 5310 Insurance Expense | E32: 0 | F32: 0 | G32: 0 | H32: 0 | I32: 33 | J32: 0 | K32: 0 | L32: 0 | M32: 0 | N32: 809 | O32: 28 | P32: 0 | Q32: 870
A33: ins | B33: 5351 Umbrella Policy | C33: Expense | D33: 5310 Insurance Expense | E33: 2864 | F33: 0 | G33: 0 | H33: 0 | I33: 0 | J33: 0 | K33: 0 | L33: 0 | M33: 0 | N33: 0 | O33: 0 | P33: 0 | Q33: 2864
A34: ins | B34: 5310 Other Insurance Expense | C34: Expense | E34: 0 | F34: 0 | G34: 0 | H34: 0 | I34: 0 | J34: 0 | K34: 0 | L34: 0 | M34: 0 | N34: 0 | O34: 0 | P34: 389 | Q34: 389
A35: leasing | B35: 5007 Leasing Expense | C35: Expense | E35: 503 | F35: 750 | G35: 512 | H35: 179 | I35: 415 | J35: 490 | K35: 938 | L35: 502 | M35: 940 | N35: 554 | O35: 558 | P35: 574 | Q35: 6915
A36: leasing | B36: 5008 Signs | C36: Expense | E36: 0 | F36: 0 | G36: 0 | H36: 0 | I36: 6 | J36: 0 | K36: 0 | L36: 0 | M36: 0 | N36: 0 | O36: 0 | P36: 0 | Q36: 6
A37: leasing | B37: 5301 Advertising | C37: Expense | E37: 0 | F37: 0 | G37: 0 | H37: 0 | I37: 8 | J37: 0 | K37: 0 | L37: 3 | M37: 0 | N37: 0 | O37: 33 | P37: 0 | Q37: 44
A38: manag | B38: 5204 Property Management Fees | C38: Expense | E38: 4863 | F38: 4176 | G38: 4425 | H38: 4215 | I38: 4357 | J38: 3912 | K38: 3822 | L38: 3942 | M38: 4467 | N38: 4556 | O38: 5269 | P38: 4424 | Q38: 52428
A39: payroll | B39: 5202 Maintenance Tech Expense | C39: Expense | D39: 5320 Professional Fees | E39: 2686 | F39: 3673 | G39: 2713 | H39: 2748 | I39: 2393 | J39: 2452 | K39: 5228 | L39: 2549 | M39: 2787 | N39: 3057 | O39: 2741 | P39: 5156 | Q39: 38183
A40: payroll | B40: 5348 Manager Expense | C40: Expense | D40: 5320 Professional Fees | E40: 825 | F40: 1241 | G40: 822 | H40: 842 | I40: 837 | J40: 832 | K40: 1657 | L40: 820 | M40: 850 | N40: 847 | O40: 842 | P40: 826 | Q40: 11241
A41: payroll | B41: 6006 Payroll Fees | C41: Expense | D41: 6005 Payroll | E41: 206 | F41: 228 | G41: 191 | H41: 221 | I41: 192 | J41: 196 | K41: 380 | L41: 182 | M41: 187 | N41: 182 | O41: 172 | P41: 175 | Q41: 2512
A42: prof | B42: 5333 Eviction | C42: Expense | D42: 5320 Professional Fees:5322 Legal | E42: 0 | F42: 0 | G42: 0 | H42: 1710 | I42: 0 | J42: 1155 | K42: 0 | L42: 0 | M42: 0 | N42: 0 | O42: 880 | P42: 0 | Q42: 3745
A43: prof | B43: 5334 Notice to Quit | C43: Expense | D43: 5320 Professional Fees:5322 Legal | E43: 0 | F43: 0 | G43: 0 | H43: 50 | I43: 50 | J43: 0 | K43: 50 | L43: 0 | M43: 0 | N43: 0 | O43: 0 | P43: 0 | Q43: 150
A44: prof | B44: 5324 Accountant | C44: Expense | D44: 5320 Professional Fees | E44: 0 | F44: 0 | G44: 0 | H44: 0 | I44: 0 | J44: 0 | K44: 0 | L44: 0 | M44: 0 | N44: 0 | O44: 1750 | P44: 0 | Q44: 1750
A45: R&M | B45: 5402 Plumbing | C45: Expense | D45: 5400 Repairs and Maintenance | E45: 284 | F45: 0 | G45: 0 | H45: 123 | I45: 139 | J45: 391 | K45: 0 | L45: 0 | M45: 0 | N45: 0 | O45: 0 | P45: 0 | Q45: 937
A46: R&M | B46: 5404 Supplies | C46: Expense | D46: 5400 Repairs and Maintenance | E46: 1199 | F46: 92 | G46: 21 | H46: 130 | I46: 331 | J46: 193 | K46: 55 | L46: 159 | M46: 442 | N46: 43 | O46: 28 | P46: 43 | Q46: 2736
A47: R&M | B47: 5405 Appliances | C47: Expense | D47: 5400 Repairs and Maintenance | E47: 0 | F47: 0 | G47: 0 | H47: 0 | I47: 0 | J47: 0 | K47: 0 | L47: 0 | M47: 151 | N47: 0 | O47: 0 | P47: 841 | Q47: 992
A48: R&M | B48: 5406 Locks / Lock Repair / Keys | C48: Expense | D48: 5400 Repairs and Maintenance | E48: 0 | F48: 0 | G48: 0 | H48: 0 | I48: 495 | J48: 0 | K48: 0 | L48: 0 | M48: 0 | N48: 0 | O48: 0 | P48: 0 | Q48: 495
A49: R&M | B49: 5410 Landscaping & Irrigation Supplies | C49: Expense | D49: 5400 Repairs and Maintenance | E49: 46 | F49: 2215 | G49: 40 | H49: 25 | I49: 0 | J49: 0 | K49: 0 | L49: 0 | M49: 0 | N49: 0 | O49: 707 | P49: 570 | Q49: 3603
A50: R&M | B50: 5412 Trash Removal | C50: Expense | D50: 5400 Repairs and Maintenance | E50: 297 | F50: 712 | G50: 940 | H50: 457 | I50: 298 | J50: 0 | K50: 378 | L50: 160 | M50: 351 | N50: 85 | O50: 191 | P50: 542 | Q50: 4411
A51: R&M | B51: 5415 HVAC | C51: Expense | D51: 5400 Repairs and Maintenance | E51: 0 | F51: 0 | G51: 0 | H51: 0 | I51: 0 | J51: 0 | K51: 0 | L51: 6 | M51: 0 | N51: 0 | O51: 0 | P51: 0 | Q51: 6
A52: R&M | B52: 5416 Cleaning Supplies | C52: Expense | D52: 5400 Repairs and Maintenance | E52: 0 | F52: 0 | G52: 32 | H52: 14 | I52: 0 | J52: 43 | K52: 0 | L52: 152 | M52: 0 | N52: 18 | O52: 10 | P52: 5 | Q52: 274
A53: R&M | B53: 5421 Windows | C53: Expense | D53: 5400 Repairs and Maintenance | E53: 0 | F53: 80 | G53: 695 | H53: 0 | I53: 0 | J53: 865 | K53: 0 | L53: 0 | M53: 0 | N53: 0 | O53: 0 | P53: 0 | Q53: 1640
A54: R&M | B54: 5426 Fire & Safety | C54: Expense | D54: 5400 Repairs and Maintenance | E54: 0 | F54: 0 | G54: 0 | H54: 0 | I54: 0 | J54: 0 | K54: 0 | L54: 51 | M54: 0 | N54: 0 | O54: 0 | P54: 0 | Q54: 51
A55: R&M | B55: 5430 Paint Supplies | C55: Expense | D55: 5400 Repairs and Maintenance | E55: 0 | F55: 0 | G55: 1469 | H55: 357 | I55: 0 | J55: 1093 | K55: 0 | L55: 0 | M55: 0 | N55: 0 | O55: 873 | P55: 0 | Q55: 3792
A56: R&M | B56: 5500 Small Tools and Equipment | C56: Expense | E56: 206 | F56: 9 | G56: 0 | H56: 0 | I56: 0 | J56: 6 | K56: 0 | L56: 0 | M56: 0 | N56: 43 | O56: 0 | P56: 0 | Q56: 264
A57: tax | B57: 5502 Property | C57: Expense | D57: 5501 Taxes | E57: 0 | F57: 42517 | G57: 0 | H57: 0 | I57: 0 | J57: 0 | K57: 0 | L57: 42517 | M57: 0 | N57: 0 | O57: 0 | P57: 0 | Q57: 85034
A58: util | B58: 5507 Sewer | C58: Expense | D58: 5506 Utilities | E58: 5820 | F58: 0 | G58: 0 | H58: 4496 | I58: 0 | J58: 0 | K58: 5231 | L58: 0 | M58: 0 | N58: 4872 | O58: 0 | P58: 0 | Q58: 20419
A59: util | B59: 5519 Apartment | C59: Expense | D59: 5506 Utilities:5508 Oil and Gas | E59: 103 | F59: 215 | G59: 0 | H59: 22 | I59: 49 | J59: 61 | K59: 103 | L59: 0 | M59: 830 | N59: 653 | O59: 0 | P59: 0 | Q59: 2036
A60: util | B60: 5515 Owner | C60: Expense | D60: 5506 Utilities:5509 Electric | E60: 282 | F60: 307 | G60: 340 | H60: 357 | I60: 356 | J60: 415 | K60: 532 | L60: 594 | M60: 594 | N60: 572 | O60: 444 | P60: 339 | Q60: 5132
A61: util | B61: 5516 Apartment | C61: Expense | D61: 5506 Utilities:5509 Electric | E61: 250 | F61: 209 | G61: 0 | H61: 0 | I61: 0 | J61: 0 | K61: 0 | L61: 605 | M61: 67 | N61: 0 | O61: 0 | P61: 0 | Q61: 1131
A62: util | B62: 5510 Water | C62: Expense | D62: 5506 Utilities | E62: 742 | F62: 913 | G62: 755 | H62: 874 | I62: 1036 | J62: 1089 | K62: 946 | L62: 1251 | M62: 1025 | N62: 1044 | O62: 912 | P62: 1125 | Q62: 11712
B63: Total Expense | E63: =SUM(E15:E62) -> 33601 | F63: 70522 | G63: 20658 | H63: 23110 | I63: 20440 | J63: 23282 | K63: 26749 | L63: 64522 | M63: 20959 | N63: 27953 | O63: 18253 | P63: 19758 | Q63: 369807
B65: NOI | E65: =E12-E63 -> 37569 | F65: 5163 | G65: 51053 | H65: 51073 | I65: 46679 | J65: 42273 | K65: 40970 | L65: 12028 | M65: 56791 | N65: 62600 | O65: 58235 | P65: 59912 | Q65: 524346

Sheet T12_Seabreeze_6.10.2025
B1: Income | C1: Account Type | D1: Parent | E1: 2025-06-24 | F1: 2025-07-24 | G1: 2025-08-24 | H1: 2025-09-24 | I1: 2025-10-24 | J1: 2025-11-24 | K1: 2025-12-24 | L1: 2025-01-25 | M1: 2025-02-25 | N1: 2025-03-25 | O1: 2025-04-25 | P1: 2025-05-25 | Q1: TOTAL
A2: late | B2: 4401 Late Fees | C2: Income | E2: 350 | F2: 325 | G2: 425 | H2: 150 | I2: 375 | J2: 600 | K2: 284 | L2: 897 | M2: 230 | N2: 419 | O2: 220 | P2: 375 | Q2: =SUM(E2:P2) -> 4650
A3: laundry | B3: 4904 Laundry Facilities | C3: Income | E3: 0 | F3: 0 | G3: 1439.43 | H3: 0 | I3: 0 | J3: 1320.35 | K3: 0 | L3: 0 | M3: 1395.85 | N3: 0 | O3: 0 | P3: 1489.86 | Q3: 5645.49
A4: misc | B4: 4002 Interest | C4: Income | E4: 617.6 | F4: 733.74 | G4: 648.31 | H4: 855.27 | I4: 784.64 | J4: 737.77 | K4: 892.48 | L4: 879.69 | M4: 813.56 | N4: 777.37 | O4: 744.89 | P4: 0 | Q4: 8485.32
A5: misc | B5: 4009 Miscellaneous Income | C5: Income | E5: 0 | F5: 0 | G5: 0 | H5: 0 | I5: 0 | J5: -3935 | K5: -150 | L5: 0 | M5: 0 | N5: -553.37 | O5: -225 | P5: 0 | Q5: -4863.37
A6: misc | B6: 4010 Legal | C6: Income | E6: 150 | F6: 200 | G6: 175 | H6: 145 | I6: 100 | J6: 325 | K6: 250 | L6: 1095 | M6: 50 | N6: 294 | O6: 347 | P6: 245 | Q6: 3376
A7: misc | B7: 4202 Reimbursement Income | C7: Income | E7: 0 | F7: 0 | G7: 0 | H7: 0 | I7: 0 | J7: 12.59 | K7: 26.94 | L7: 0 | M7: 26.1 | N7: 0.1 | O7: 33.12 | P7: 0 | Q7: 98.85
A8: misc | B8: 4400 Application Fees | C8: Income | E8: 40 | F8: 535 | G8: 0 | H8: 80 | I8: 0 | J8: 100 | K8: 100 | L8: 150 | M8: 300 | N8: 350 | O8: 0 | P8: 150 | Q8: 1805
A9: misc | B9: 4402 NSF Fees | C9: Income | E9: 0 | F9: 0 | G9: 0 | H9: 0 | I9: 0 | J9: 0 | K9: 50 | L9: 0 | M9: 50 | N9: 0 | O9: 50 | P9: 200 | Q9: 350
A10: misc | B10: 4407 Key Replacement Fee | C10: Income | E10: 0 | F10: 0 | G10: 0 | H10: 0 | I10: 105 | J10: 0 | K10: 0 | L10: 0 | M10: 0 | N10: 0 | O10: 35 | P10: 0 | Q10: 140
A11: parking | B11: 4907 Parking | C11: Income | E11: 847 | F11: 730.5 | G11: 720 | H11: 645 | I11: 655 | J11: 654 | K11: 800 | L11: 852 | M11: 695 | N11: 580 | O11: 780 | P11: 690 | Q11: 8648.5
A12: pet | B12: 4404 Pet Fees | C12: Income | E12: 150 | F12: 150 | G12: 178 | H12: 200 | I12: 200 | J12: 200 | K12: 200 | L12: 200 | M12: 200 | N12: 225 | O12: 200 | P12: 275 | Q12: 2378
A13: rent | B13: 4200 Residential Rental Income | C13: Income | E13: 63209.75 | F13: 60558.25 | G13: 58830.5 | H13: 55444.5 | I13: 61848.87 | J13: 67014.88 | K13: 61024.75 | L13: 59593.6 | M13: 58673.88 | N13: 59072.69 | O13: 56483.38 | P13: 60490 | Q13: 722245.05
A14: rent | B14: 4201 Government Subsidized Residential Rental Income | C14: Income | E14: 7686 | F14: 7480 | G14: 7480 | H14: 7480 | I14: 6178 | J14: 6178 | K14: 8640 | L14: 6758 | M14: 7388 | N14: 7388 | O14: 6015 | P14: 6015 | Q14: 84686
A15: rent | B15: 4018 Non-Goverment Subsidized Residential Rental Income | C15: Income | E15: 307 | F15: 369 | G15: 369 | H15: 369 | I15: 369 | J15: 369 | K15: 369 | L15: 369 | M15: 595 | N15: 595 | O15: 595 | P15: 595 | Q15: 5270
B16: Total Income | E16: =SUM(E2:E15) -> 73357.35 | F16: 71081.49 | G16: 70265.24 | H16: 65368.77 | I16: 70615.51 | J16: 73576.59 | K16: 72487.17 | L16: 70794.29 | M16: 70417.39 | N16: 69147.79 | O16: 65278.39 | P16: 70524.86 | Q16: 842914.84
B18: Expense
A19: admin | B19: 5002 Charity | C19: Expense | E19: 0 | F19: 0 | G19: 0 | H19: 0 | I19: 0 | J19: 0 | K19: 0 | L19: 0 | M19: 49.22 | N19: 0 | O19: 0 | P19: 0 | Q19: =SUM(E19:P19) -> 49.22
A20: admin | B20: 5018 Monitoring / Security | C20: Expense | E20: 0 | F20: 0 | G20: 0 | H20: 0 | I20: 778.48 | J20: 0 | K20: 0 | L20: 0 | M20: 0 | N20: 636.42 | O20: 0 | P20: 0 | Q20: 1414.9
A21: admin | B21: 5305 Bank Service Charge | C21: Expense | E21: 37.72 | F21: 43.07 | G21: 54.96 | H21: 50.76 | I21: 43.8 | J21: 38.88 | K21: 39.88 | L21: 46.36 | M21: 55.44 | N21: 53.52 | O21: 50.36 | P21: 57.72 | Q21: 572.47
A22: admin | B22: 5314 Interest Expense | C22: Expense | E22: 0 | F22: 0 | G22: 0 | H22: 3.22 | I22: 0 | J22: 0 | K22: 0 | L22: 21.8 | M22: 12.57 | N22: 22.04 | O22: 14.97 | P22: 0 | Q22: 74.6
A23: admin | B23: 5319 Printing & Reproduction | C23: Expense | E23: 0 | F23: 0 | G23: 12.05 | H23: 0 | I23: 0 | J23: 0 | K23: 0 | L23: 0 | M23: 0 | N23: 0 | O23: 0 | P23: 0 | Q23: 12.05
A24: admin | B24: 6004 Administration Expense | C24: Expense | D24: 5320 Professional Fees | E24: 742.75 | F24: 1119.87 | G24: 743.92 | H24: 756.1 | I24: 744.88 | J24: 714.51 | K24: 1526.7 | L24: 759.46 | M24: 897.18 | N24: 860.67 | O24: 830.27 | P24: 879.96 | Q24: 10576.27
A25: admin | B25: 5338 Credit Check | C25: Expense | E25: 0 | F25: 74.42 | G25: 263.11 | H25: 0 | I25: 95.66 | J25: 472.6 | K25: 79.68 | L25: 51.87 | M25: 78.43 | N25: 156.87 | O25: 241.6 | P25: 0 | Q25: 1514.24
A26: admin | B26: 5512 Personal Property Tax | C26: Expense | D26: 5501 Taxes | E26: 0 | F26: 223.78 | G26: 0 | H26: 0 | I26: 0 | J26: 0 | K26: 0 | L26: 0 | M26: 0 | N26: 0 | O26: 0 | P26: 0 | Q26: 223.78
A27: admin | B27: 5523 Annual Report Fee | C27: Expense | D27: 5501 Taxes | E27: 0 | F27: 0 | G27: 0 | H27: 0 | I27: 0 | J27: 0 | K27: 0 | L27: 0 | M27: 80 | N27: 0 | O27: 0 | P27: 0 | Q27: 80
A28: admin | B28: 5504 Cable Internet Phone Service Expense | C28: Expense | E28: 31.4 | F28: 66.91 | G28: 66.47 | H28: 61.5 | I28: 65.72 | J28: 65.53 | K28: 68.16 | L28: 32.15 | M28: 67.72 | N28: 67.72 | O28: 67.72 | P28: 72.87 | Q28: 733.87
A29: admin | B29: 6019 Software | C29: Expense | D29: 6012 Liscenses and Memberships | E29: 1.38 | F29: 2.08 | G29: 2.08 | H29: 2.08 | I29: 2.08 | J29: 2.08 | K29: 2.08 | L29: 2.08 | M29: 2.08 | N29: 2.08 | O29: 2.08 | P29: 2.08 | Q29: 24.26
A30: admin | B30: 6021 Marketing and Information | C30: Expense | D30: 6012 Liscenses and Memberships | E30: 0 | F30: 0 | G30: 13.29 | H30: 0 | I30: 0 | J30: 0 | K30: 0 | L30: 0 | M30: 0 | N30: 0 | O30: 0 | P30: 0 | Q30: 13.29
A31: admin | B31: 6034 Parking | C31: Expense | E31: 0 | F31: 0 | G31: 0 | H31: 0 | I31: 0 | J31: 0 | K31: 0 | L31: 0 | M31: 0 | N31: 0 | O31: 0 | P31: 315.32 | Q31: 315.32
A32: Contracts | B32: 5418 Cleaning Service Expense | C32: Expense | D32: 6049 Service Contracts | E32: 1078.4 | F32: 1668.18 | G32: 1059.02 | H32: 1045.42 | I32: 1095.28 | J32: 1082 | K32: 2320.95 | L32: 1098.6 | M32: 1070.26 | N32: 1170.2 | O32: 1185.35 | P32: 1151.23 | Q32: 15024.89
A33: Contracts | B33: 5411 Snow Removal Contracts | C33: Expense | D33: 6049 Service Contracts | E33: 0 | F33: 0 | G33: 0 | H33: 0 | I33: 0 | J33: 0 | K33: 851 | L33: 851 | M33: 851 | N33: 851 | O33: 851 | P33: 851 | Q33: 5106
A34: Contracts | B34: 5413 Extermination Contracts | C34: Expense | D34: 6049 Service Contracts | E34: 0 | F34: 0 | G34: 0 | H34: 0 | I34: 531.75 | J34: 0 | K34: 0 | L34: 957.15 | M34: 0 | N34: 0 | O34: 0 | P34: 1276.2 | Q34: 2765.1
A35: Contracts | B35: 6050 Landscaping & Irrigation Contracts | C35: Expense | D35: 6049 Service Contracts | E35: 37.5 | F35: 0 | G35: 990 | H35: 300 | I35: 300 | J35: 300 | K35: 300 | L35: 560 | M35: 0 | N35: 0 | O35: 0 | P35: 0 | Q35: 2787.5
A36: ins | B36: 5312 Property | C36: Expense | D36: 5310 Insurance Expense | E36: 2944.9 | F36: 2944.9 | G36: 0 | H36: 6185.09 | I36: 3093.08 | J36: 0 | K36: 3093.08 | L36: 18553.11 | M36: 0 | N36: 0 | O36: 0 | P36: 0 | Q36: 36814.16
A37: ins | B37: 5326 Flood | C37: Expense | D37: 5310 Insurance Expense | E37: 0 | F37: 0 | G37: 0 | H37: 5257.6 | I37: 0 | J37: 4448.08 | K37: 0 | L37: 0 | M37: 0 | N37: 0 | O37: 0 | P37: 0 | Q37: 9705.68
A38: ins | B38: 5342 Liability | C38: Expense | D38: 5310 Insurance Expense | E38: 2944.9 | F38: 2944.9 | G38: 0 | H38: 6185.09 | I38: 3093.08 | J38: 0 | K38: 3093.08 | L38: 18553.11 | M38: 0 | N38: 0 | O38: 0 | P38: 0 | Q38: 36814.16
A39: ins | B39: 5343 Insurance Misc Exp | C39: Expense | D39: 5310 Insurance Expense | E39: 0 | F39: 0 | G39: 0 | H39: 0 | I39: 45.04 | J39: 0 | K39: 0 | L39: 0 | M39: 0 | N39: 1102.74 | O39: 38.42 | P39: 0 | Q39: 1186.2
A40: ins | B40: 5351 Umbrella Policy | C40: Expense | D40: 5310 Insurance Expense | E40: 0 | F40: 0 | G40: 0 | H40: 854.57 | I40: 0 | J40: 854.57 | K40: 0 | L40: 1704.82 | M40: 0 | N40: 0 | O40: 0 | P40: 0 | Q40: 3413.96
A41: ins | B41: 5310 Other Insurance Expense | C41: Expense | E41: 0 | F41: 0 | G41: 0 | H41: 0 | I41: 0 | J41: 0 | K41: 0 | L41: 0 | M41: 0 | N41: 0 | O41: 0 | P41: 531.41 | Q41: 531.41
A42: leasing | B42: 5007 Leasing Expense | C42: Expense | E42: 686.2 | F42: 1022.96 | G42: 697.68 | H42: 244.03 | I42: 565.73 | J42: 668.51 | K42: 1278.62 | L42: 684.2 | M42: 1281.73 | N42: 755.17 | O42: 761.16 | P42: 783.03 | Q42: 9429.02
A43: leasing | B43: 5008 Signs | C43: Expense | E43: 0 | F43: 0 | G43: 0 | H43: 0 | I43: 7.63 | J43: 0 | K43: 0 | L43: 0 | M43: 0 | N43: 0 | O43: 0 | P43: 0 | Q43: 7.63
A44: leasing | B44: 5301 Advertising | C44: Expense | E44: 0 | F44: 0 | G44: 0 | H44: 0 | I44: 11.47 | J44: 0 | K44: 0 | L44: 4.16 | M44: 0 | N44: 0 | O44: 0 | P44: 0 | Q44: 15.63
A45: manage | B45: 5204 Property Management Fees | C45: Expense | E45: 4270.1 | F45: 4382.8 | G45: 4220.86 | H45: 4177.02 | I45: 3870.81 | J45: 4189.85 | K45: 4370.33 | L45: 4295.68 | M45: 4194.88 | N45: 4176.23 | O45: 4102.23 | P45: 3872.01 | Q45: 50122.8
A46: payroll | B46: 5202 Maintenance Tech Expense | C46: Expense | D46: 5320 Professional Fees | E46: 3662.01 | F46: 5772.15 | G46: 3490.18 | H46: 3437.76 | I46: 3126.38 | J46: 3343.7 | K46: 6992.32 | L46: 3476.19 | M46: 3800.47 | N46: 3958.92 | O46: 3738.16 | P46: 7031.2 | Q46: 51829.44
A47: payroll | B47: 5348 Manager Expense | C47: Expense | D47: 5320 Professional Fees | E47: 1124.5 | F47: 1691.64 | G47: 1120.27 | H47: 1147.86 | I47: 1141.68 | J47: 1135.18 | K47: 2259.58 | L47: 1118.06 | M47: 1158.67 | N47: 1154.91 | O47: 1148.38 | P47: 1126.01 | Q47: 15326.74
A48: payroll | B48: 5423 Painting Labor Expense | C48: Expense | D48: 5320 Professional Fees | E48: 0 | F48: 0 | G48: 300 | H48: 0 | I48: 0 | J48: 0 | K48: 0 | L48: 0 | M48: 0 | N48: 0 | O48: 0 | P48: 0 | Q48: 300
A49: payroll | B49: 6006 Payroll Fees | C49: Expense | D49: 6005 Payroll | E49: 280.79 | F49: 311.26 | G49: 259.86 | H49: 301.45 | I49: 261.62 | J49: 267.13 | K49: 517.66 | L49: 248.34 | M49: 254.82 | N49: 248.18 | O49: 234.53 | P49: 238.28 | Q49: 3423.92
A50: prof | B50: 5333 Eviction | C50: Expense | D50: 5320 Professional Fees:5322 Legal | E50: 0 | F50: 0 | G50: 0 | H50: 880 | I50: 650 | J50: 1110 | K50: 0 | L50: 0 | M50: 0 | N50: 1850 | O50: 2610 | P50: 0 | Q50: 7100
A51: prof | B51: 5334 Notice to Quit | C51: Expense | D51: 5320 Professional Fees:5322 Legal | E51: 0 | F51: 100 | G51: 0 | H51: 225 | I51: 0 | J51: 100 | K51: 100 | L51: 0 | M51: 125 | N51: 0 | O51: 0 | P51: 230 | Q51: =SUM(E51:P51) -> 880
A52: prof | B52: 5324 Accountant | C52: Expense | D52: 5320 Professional Fees | E52: 0 | F52: 0 | G52: 0 | H52: 0 | I52: 0 | J52: 0 | K52: 0 | L52: 0 | M52: 0 | N52: 0 | O52: 2750 | P52: 0 | Q52: 2750
A53: R&M | B53: 5402 Plumbing | C53: Expense | D53: 5400 Repairs and Maintenance | E53: 0 | F53: 0 | G53: 0 | H53: 0 | I53: 0 | J53: 0 | K53: 224.14 | L53: 495 | M53: 47.78 | N53: 38.23 | O53: 0 | P53: 0 | Q53: 805.15
A54: R&M | B54: 5404 Supplies | C54: Expense | D54: 5400 Repairs and Maintenance | E54: 29.21 | F54: 107.76 | G54: 29.17 | H54: 23.21 | I54: 19.62 | J54: 4.34 | K54: 57.52 | L54: 216.32 | M54: 276.99 | N54: -8.54 | O54: 38.07 | P54: 20.43 | Q54: 814.1
A55: R&M | B55: 5405 Appliances | C55: Expense | D55: 5400 Repairs and Maintenance | E55: 0 | F55: 0 | G55: 0 | H55: 0 | I55: 0 | J55: 0 | K55: 0 | L55: 0 | M55: 206.56 | N55: 0 | O55: 0 | P55: 0 | Q55: 206.56
A56: R&M | B56: 5406 Locks / Lock Repair / Keys | C56: Expense | D56: 5400 Repairs and Maintenance | E56: 0 | F56: 0 | G56: 0 | H56: 0 | I56: 0 | J56: 449.33 | K56: 0 | L56: 0 | M56: 0 | N56: 0 | O56: 0 | P56: 0 | Q56: 449.33
A57: R&M | B57: 5410 Landscaping & Irrigation Supplies | C57: Expense | D57: 5400 Repairs and Maintenance | E57: 11.74 | F57: 68.13 | G57: 54.24 | H57: 334.68 | I57: 0 | J57: 0 | K57: 0 | L57: 0 | M57: 0 | N57: 0 | O57: 0 | P57: 399.76 | Q57: 868.55
A58: R&M | B58: 5412 Trash Removal | C58: Expense | D58: 5400 Repairs and Maintenance | E58: 279 | F58: 417.26 | G58: 459.8 | H58: 919.93 | I58: 361.59 | J58: 0 | K58: 451.96 | L58: 451.99 | M58: 786.99 | N58: 595.55 | O58: 829.53 | P58: 650.79 | Q58: 6204.39
A59: R&M | B59: 5414 Electrical | C59: Expense | D59: 5400 Repairs and Maintenance | E59: 0 | F59: 0 | G59: 0 | H59: 0 | I59: 0 | J59: 0 | K59: 0 | L59: 195 | M59: 0 | N59: 0 | O59: 0 | P59: 0 | Q59: 195
A60: R&M | B60: 5415 HVAC | C60: Expense | D60: 5400 Repairs and Maintenance | E60: 0 | F60: 0 | G60: 0 | H60: 0 | I60: 0 | J60: 0 | K60: 0 | L60: 8.4 | M60: 0 | N60: 0 | O60: 0 | P60: 0 | Q60: 8.4
A61: R&M | B61: 5416 Cleaning Supplies | C61: Expense | D61: 5400 Repairs and Maintenance | E61: 0 | F61: 0 | G61: 43.97 | H61: 18.98 | I61: 0 | J61: 35.65 | K61: 114.42 | L61: 207.88 | M61: 0 | N61: 25.12 | O61: 13.88 | P61: 7.18 | Q61: 467.08
A62: R&M | B62: 5420 Parking Lot | C62: Expense | D62: 5400 Repairs and Maintenance | E62: 0 | F62: 0 | G62: 0 | H62: 30.37 | I62: 0 | J62: 0 | K62: 0 | L62: 0 | M62: 88.57 | N62: 0 | O62: 0 | P62: 0 | Q62: 118.94
A63: R&M | B63: 5421 Windows | C63: Expense | D63: 5400 Repairs and Maintenance | E63: 0 | F63: 0 | G63: 0 | H63: 478.58 | I63: 69.13 | J63: 0 | K63: 0 | L63: 54.77 | M63: 0 | N63: 544.83 | O63: 0 | P63: 85.08 | Q63: 1232.39
A64: R&M | B64: 5426 Fire & Safety | C64: Expense | D64: 5400 Repairs and Maintenance | E64: 0 | F64: 0 | G64: 0 | H64: 0 | I64: 329.69 | J64: 0 | K64: 0 | L64: 0 | M64: 0 | N64: 0 | O64: 0 | P64: 0 | Q64: 329.69
A65: R&M | B65: 5430 Paint Supplies | C65: Expense | D65: 5400 Repairs and Maintenance | E65: 0 | F65: 0 | G65: 0 | H65: 636.44 | I65: 148.36 | J65: 695.95 | K65: 0 | L65: 0 | M65: 0 | N65: 0 | O65: 867.82 | P65: 0 | Q65: 2348.57
A66: R&M | B66: 5500 Small Tools and Equipment | C66: Expense | E66: 280.36 | F66: 11.8 | G66: 0 | H66: 0 | I66: 0 | J66: 8.69 | K66: 0 | L66: 0 | M66: 29.78 | N66: 58.04 | O66: 0 | P66: 0 | Q66: 388.67
A67: Tax | B67: 5502 Property | C67: Expense | D67: 5501 Taxes | E67: 0 | F67: 55043.55 | G67: 0 | H67: 0 | I67: 0 | J67: 0 | K67: 0 | L67: 55043.55 | M67: 0 | N67: 0 | O67: 0 | P67: 0 | Q67: 110087.1
A68: util | B68: 5507 Sewer | C68: Expense | D68: 5506 Utilities | E68: 0 | F68: 3648.96 | G68: 0 | H68: 0 | I68: 3944.73 | J68: 0 | K68: 0 | L68: 3730.6 | M68: 0 | N68: 0 | O68: 0 | P68: 3892.8 | Q68: 15217.09
A69: util | B69: 5518 Owner | C69: Expense | D69: 5506 Utilities:5508 Oil and Gas | E69: 0 | F69: 0 | G69: 0 | H69: 0 | I69: 2452.5 | J69: 490.95 | K69: 1504.93 | L69: 404.25 | M69: 1101.02 | N69: 523.03 | O69: 1053.94 | P69: 369.87 | Q69: 7900.49
A70: util | B70: 5515 Owner | C70: Expense | D70: 5506 Utilities:5509 Electric | E70: 581.13 | F70: 0 | G70: 577.91 | H70: 1241.78 | I70: 0 | J70: 693.29 | K70: 1583.82 | L70: 1141.54 | M70: 1193.59 | N70: 0 | O70: 2235.91 | P70: 664.48 | Q70: 9913.45
A71: util | B71: 5516 Apartment | C71: Expense | D71: 5506 Utilities:5509 Electric | E71: 0 | F71: 99.72 | G71: 0 | H71: 31.37 | I71: 67.59 | J71: 60.57 | K71: 26.94 | L71: 142.17 | M71: 1309.36 | N71: 33.12 | O71: 47.44 | P71: 177.43 | Q71: 1995.71
A72: util | B72: 5510 Water | C72: Expense | D72: 5506 Utilities | E72: 1084.07 | F72: 881.66 | G72: 917.72 | H72: 841.59 | I72: 973.23 | J72: 809.96 | K72: 868.46 | L72: 1024.19 | M72: 899.05 | N72: 835.47 | O72: 816.67 | P72: 760.74 | Q72: 10712.81
B73: Total Expense | E73: =SUM(E19:E72) -> 20108.06 | F73: 82647.76 | G73: 15376.56 | H73: 35671.48 | I73: 27890.61 | J73: 22041.35 | K73: 31725.31 | L73: 116133.8 | M73: 19919.16 | N73: 19711.52 | O73: 24529.49 | P73: 25446.88 | Q73: 441201.98
B75: NOI | E75: =E16-E73 -> 53249.29 | F75: -11566.27 | G75: 54888.68 | H75: 29697.29 | I75: 42724.9 | J75: 51535.24 | K75: 40761.86 | L75: -45339.51 | M75: 50498.23 | N75: 49436.27 | O75: 40748.9 | P75: 45077.98 | Q75: 401712.86

Sheet Portfolio Overview (2)
A1: Portfolio Overview
A3: Address | B3: 223 Iranistan Avenue | C3: 170 Read Street | D3: 20 Read Street | E3: 675 Central Avenue | F3: Total
A4: Units | B4: 60 | C4: 8 | D4: 44 | E4: 36 | F4: =SUM(B4:E4) -> 148
A5: Studios | B5: 21 | F5: 21
A6: One Bedrooms | B6: 27 | F6: 27
A7: Two Bedrooms | B7: 12 | C7: 5 | D7: 20 | E7: 26 | F7: 63
A8: Three bedrooms | C8: 3 | E8: 10 | F8: 13
A9: Four Bedrooms | D9: 24 | F9: 24
A10: Lot Size (Acres) | B10: 0.63 | C10: 0.29 | D10: 2.42 | E10: 1.52 | F10: 4.86
A11: Year Built | B11: 1969 | C11: 1990 | D11: 1973 | E11: 1969 | F11: 1969-1990
A12: Gross SF | B12: 40742 | C12: 8442 | D12: =21312+10296+8640+8640 -> 48888 | E12: =6152+6152+9672+3968+10128 -> 36072 | F12: =SUM(B12:E12) -> 134144
A13: Exterior | B13: Brick | C13: Vinyl Siding | D13: Brick & Clapboard | E13: Brick & Vinyl Siding
A14: Framing | B14: Steel | C14: Wood | D14: Wood | E14: Wood
A15: Stories | B15: 4 | C15: 2.5 | D15: 2 | E15: 2
A16: Heat (Responsible) | B16: Electric Baseboard (Tenant) | C16: Individual Gas-Fired Forced Warm Air (Tenant) | D16: Individual Gas-Fired Hot-Water Baseboard (Tenant) | E16: Central Gas-Fired Hot-Water Baseboard (Landlord)
A17: Hot Water (Responsible) | B17: 223 Iranistan: Individual 50-gallon Electric (Tenant), 760 Atlantic: Central Gas-Fired (Landlord) | C17: Individual 50-gallon Electric (Tenant) | D17: Individual 50-gallon Electric (Tenant) | E17: Individual 50-gallon Electric (Tenant)
A18: Electricity | B18: Individual, 100-Amp Service | C18: Individual, 100-Amp Service | D18: Individual, 100-Amp Service | E18: Individual, 100-Amp Service
A19: Roof | B19: Built Up Rubber | C19: Pitched Asphalt Shingle | D19: Rubber EPDM & Asphalt Shingle Mansard | E19: Pitched Asphalt Shingle
A20: Windows | B20: Vinyl - Dual Pane | C20: Vinyl - Dual Pane | D20: Vinyl - Dual Pane | E20: Vinyl - Dual Pane
A21: Notes | C21: ***Water Separately Metered (Just Started Direct Billing to Tenants)
A23: Assessment | B23: 2533650 | C23: 377070 | D23: 1957050 | E23: 1676780 | F23: =SUM(B23:E23) -> 6544550
A24: Mill Rate | B24: 43.45 | C24: 43.45 | D24: 43.45 | E24: 43.45
A25: Tax | B25: =B23*B24/1000 -> 110087.0925 | C25: =C23*C24/1000 -> 16383.6915 | D25: 85033.8225 | E25: 72856.091 | F25: =SUM(B25:E25) -> 284360.6975
